Workbook

Sheet Capa not (hidden)
R28: Falta alterar ligações

Sheet Capa

Sheet Disclaimer
C10: Simulador não prevê as seguintes situações
C12: - Residentes fiscais nos Açores - Sujeitos passivos deficientes - Agregados Familiares em que os dependentes ou os ascendentes aufiram rendimentos - O simulador não prevê situações de guarda conjunta de dependentes
C13: - O simulador não prevê a majoração da dedução à coleta de 125€ por dependente com idade inferior ou igual a 3 anos
C14: - A tributação de pensão de alimentos
C16: Pressupostos da estimativa de imposto
C17: - Os dependentes poderão ser incluídos em mais do que uma declaração de rendimentos, desde que indique que há tributação separada. - As simulações de imposto encontram-se limitadas às categorias de rendimentos e despesas incluídas no simulador.
C18: - As estimativas disponibilizadas são meramente ilustrativas e baseadas na interpretação da PwC da Lei n.º 159-D/2015, de 30 de dezembro, relativamente à aplicação da sobretaxa de IRS e da Proposta de Lei n.º 156/XIII, relativamente ao Orçamento de Estado para 2019.
C19: - As simulações de imposto não consideram o mínimo de existência para agregados familiares com três ou mais dependentes nem as agregados familiares casados/união de facto com 1 titular.
C21: Trabalho dependente
C23: - Como dedução específica aos rendimentos do trabalho dependente, apenas se encontram previstas a dedução específica considerada na lei ou as contribuições obrigatórias para regimes de proteção social e para subsistemas legais de saúde. Assume, a taxa de contribuições para a Segurança Social ou outros regimes à taxa de 11%.
C25: Pensões
C27: - Não se encontram previstas situações de convergência da Caixa Geral de Aposentações com as pensões pagas pelo Centro Nacional de Pensões.
C29: Deduções à coleta
C31: Despesas de saúde
C32: - Assume-se que o valor de despesas de saúde introduzidas se referem integralmente a despesas isentas de IVA ou sujeitas à taxa reduzida de IVA.
C34: Despesas de educação
C35: - O simulador não contempla as situações de estudantes que frequentem estabelecimentos de ensino situados em território do interior.
C37: Encargos com imóveis
C38: - O simulador não contempla as situações de transferência de residência permanente para um território do interior.
C40: Despesas gerais
C41: - Assume-se que o valor de despesas gerais introduzido poderá conter despesas incorridas por qualquer membro do agregado familiar, que conste de faturas que titulem prestações de serviços e aquisições de bens comunicadas à Autoridade Tributária, enquadradas em qualquer setor de atividade, com excepção das despesas de saúde e encargos com imóveis. - No caso de optar por tributação separada, deverá dividir o valor de despesas gerais por dois.
C43: Encargos com donativos
C44: - Assume-se por defeito uma majoração de 130%, sem qualquer limitação, dos encargos com donativos. No entanto, nota-se que a percentagem de majoração do encargo dependerá da natureza da entidade beneficiária do mesmo (esta majoração poderá variar entre 120% e 140%). - No caso de optar por tributação separada, deverá inserir o valor do donativo na simulação do contribuinte que conste do recibo comprovativo do mesmo.
C46: IVA
C47: - O simulador não considera a dedução a 15% referente ao benefício fiscal do IVA suportado.

Sheet Ajuda
C34: Veja abaixo as opções a selecionar:

Sheet Simular IRS 2019
B6: Passo 1 | D6: Informação pessoal
D8: Estado civil
D9: Tributação Separada / Tributação Conjunta
D10: Nº de Dependentes
D11: Nº de Ascendentes
D12: Idade Sujeito Passivo A
D14: Idade Sujeito Passivo B
B17: Passo 2 | D17: Rendimentos
B18: Rendimento do trabalho dependente | G18: Sujeito passivo A | L18: Sujeito passivo B
D19: Rendimento do trabalho dependente - Privado
D21: Rendimento do trabalho dependente - Público (antes de cortes 2014)
B23: Pensões
D24: Pensões
D26: Pensões de alimentos
B29: Passo 3 | D29: Deduções à coleta do IRS, incluindo benefícios fiscais
B30: Deduções à coleta
D31: Despesas de saúde e prémios de seguros de saúde
D33: Despesas de educação do agregado familiar:
D35: Despesas sem incluir rendas
D37: Despesas apenas relativas as rendas
D39: Deslocado (sem incluir rendas)
D41: Deslocado (incluir apenas rendas)
D44: Nº de dependentes com despesas de educação | H44: ='BIG SIMULATOR'!C93 -> 0 | K44: ='BIG SIMULATOR'!C95 -> 0
D46: Despesas de educação dos sujeitos passivos
D48: Nº de sujeitos passivos com despesas de educação | K48: =+'BIG SIMULATOR'!C92 -> 1
D50: Despesas com imóveis
D51: Ano do contrato (preenchimento obrigatório)
D53: Juros
D55: Despesas com rendas
D57: Despesas gerais (outras não referidas acima)
D59: Encargos com pensões de alimentos
D61: Nº de beneficiários (preenchimento obrigatório)
D64: Seguros de saúde
D66: Contribuições para Planos Poupança Reforma (PPR's)
D67: SujeitoPassivo A
D69: SujeitoPassivo B
D71: Encargos com donativos
D76: =IF('BIG SIMULATOR'!C91="","Falta preencher dados",""&'BIG SIMULATOR'!C91&""&IF('BIG SIMULATOR'!C92=1,"",", "&'BIG SIMULATOR'!C102)&""&", "&IF('BIG SIMULATOR'!C95>1,""&'BIG SIMULATOR'!C95&" filhos",IF('BIG SIMULATOR'!C95=1,""&'BIG SIMULATOR'!C95&" filho","sem filhos")))&", "&IF('BIG SIMULATOR'!C96="0"," sem ascendentes",IF('BIG SIMULATOR'!C96="1",""&'BIG SIMULATOR'!C96&" ascendente",""&'BIG SIMULATOR'!C96&" ascendentes")) -> Solteiro / Viúvo / Divorciado, sem filhos, sem ascendentes
D79: Rendimento bruto | E79: 2016 | G79: 2017 | H79: 2018 | I79: 2019
D80: Rendimento bruto | E80: =IFERROR(+'BIG SIMULATOR'!$M$107,0) -> 0 | G80: =IFERROR(+'BIG SIMULATOR'!$M$107,0) -> 0 | H80: =IFERROR(+'BIG SIMULATOR'!$M$107,0) -> 0 | I80: =IFERROR(+'BIG SIMULATOR'!$M$107,0) -> 0
D81: Redução remuneratória para Função Pública | E81: =('BIG SIMULATOR'!L131-'BIG SIMULATOR'!L134)+('BIG SIMULATOR'!L140-'BIG SIMULATOR'!L143) -> 0 | G81: =('BIG SIMULATOR'!M131-'BIG SIMULATOR'!M134)+('BIG SIMULATOR'!M140-'BIG SIMULATOR'!M143) -> 0 | H81: =('BIG SIMULATOR'!N131-'BIG SIMULATOR'!N134)+('BIG SIMULATOR'!N140-'BIG SIMULATOR'!N143) -> 0 | I81: =('BIG SIMULATOR'!N131-'BIG SIMULATOR'!N134)+('BIG SIMULATOR'!N140-'BIG SIMULATOR'!N143) -> 0
D82: Rendimento bruto com corte | E82: =IF(E81=0,E80,+'BIG SIMULATOR'!H22) -> 0 | G82: =IF(G81=0,G80,+'BIG SIMULATOR'!K22) -> 0 | H82: =IF(H81=0,H80,+'BIG SIMULATOR'!L22) -> 0 | I82: =IF(H81=0,H80,+'BIG SIMULATOR'!L22) -> 0
D83: Contribuição extraordinária de solidariedade (CES) | E83: =IF('BIG SIMULATOR'!J179>0,'BIG SIMULATOR'!J179,0)+IF('BIG SIMULATOR'!J189>0,'BIG SIMULATOR'!J189,0) -> 0 | G83: =IF('BIG SIMULATOR'!K179>0,'BIG SIMULATOR'!K179,0)+IF('BIG SIMULATOR'!K189>0,'BIG SIMULATOR'!K189,0) -> 0 | H83: =IF('BIG SIMULATOR'!L179>0,'BIG SIMULATOR'!L179,0)+IF('BIG SIMULATOR'!L189>0,'BIG SIMULATOR'!L189,0) -> 0 | I83: =IF('BIG SIMULATOR'!M179>0,'BIG SIMULATOR'!M179,0)+IF('BIG SIMULATOR'!M189>0,'BIG SIMULATOR'!M189,0) -> 0
D84: IRS antes de deduções (1) | E84: ='BIG SIMULATOR'!J45 -> 0 | G84: ='BIG SIMULATOR'!K45 -> 0 | H84: ='BIG SIMULATOR'!L45 -> 0 | I84: ='BIG SIMULATOR'!L45 -> 0
D85: Taxa adicional de solidariedade (2) | E85: ='BIG SIMULATOR'!J73 -> 0 | G85: ='BIG SIMULATOR'!K73 -> 0 | H85: ='BIG SIMULATOR'!L73 -> 0 | I85: ='BIG SIMULATOR'!L73 -> 0
D86: Deduções à coleta (3)
D87: Deduções à coleta | E87: ='BIG SIMULATOR'!J58 -> 0 | G87: ='BIG SIMULATOR'!K58 -> 0 | H87: ='BIG SIMULATOR'!L58 -> 0 | I87: ='BIG SIMULATOR'!L58 -> 0
D88: Despesas gerais | E88: =+'BIG SIMULATOR'!J54 -> 0 | G88: =+'BIG SIMULATOR'!K54 -> 0 | H88: =+'BIG SIMULATOR'!L54 -> 0 | I88: =+'BIG SIMULATOR'!L54 -> 0
D89: Deduções por dependente/ascendente | E89: =IF(E80=0,0,-'BIG SIMULATOR'!K215-'BIG SIMULATOR'!K216) -> 0 | G89: =IF(G80=0,0,-'BIG SIMULATOR'!L215-'BIG SIMULATOR'!L216) -> 0 | H89: =IF(H80=0,0,-'BIG SIMULATOR'!M215-'BIG SIMULATOR'!M216) -> 0 | I89: =IF(I80=0,0,-'BIG SIMULATOR'!M215-'BIG SIMULATOR'!M216) -> 0
D90: Deduções com benefícios fiscais | E90: ='BIG SIMULATOR'!H65 -> 0 | G90: ='BIG SIMULATOR'!J65 -> 0
D91: Sobretaxa (4) | E91: ='BIG SIMULATOR'!J71 -> 0 | G91: ='BIG SIMULATOR'!K71 -> 0 | H91: ='BIG SIMULATOR'!L71 -> 0 | I91: ='BIG SIMULATOR'!L71 -> 0
D92: Pensão de alimentos | E92: =+'BIG SIMULATOR'!J176+'BIG SIMULATOR'!J186 -> 0 | G92: =+'BIG SIMULATOR'!K176+'BIG SIMULATOR'!K186 -> 0
D93: Imposto final (1)+(2)+(3)+(4) | E93: ='BIG SIMULATOR'!J78 -> 0 | G93: ='BIG SIMULATOR'!K78 -> 0 | H93: ='BIG SIMULATOR'!L78 -> 0 | I93: ='BIG SIMULATOR'!L78 -> 0
D94: Rendimento líquido de IRS | E94: ='BIG SIMULATOR'!J85 -> 0 | G94: ='BIG SIMULATOR'!K85 -> 0 | H94: ='BIG SIMULATOR'!L85 -> 0 | I94: ='BIG SIMULATOR'!L85 -> 0
D95: Taxa efetiva | E95: =IFERROR('BIG SIMULATOR'!J83,0) -> 0 | G95: =IFERROR('BIG SIMULATOR'!K83,0) -> 0 | H95: =IFERROR('BIG SIMULATOR'!L83,0) -> 0 | I95: =IFERROR('BIG SIMULATOR'!L83,0) -> 0
D98: Caso o imposto final seja inferior a 25 € não haverá lugar ao pagamento de qualquer imposto

Sheet Informação 2014 (hidden)
E2: Despesas dedutíveis - Limites para 2014
C7: Despesas de saúde
C9: 10% das seguintes despesas de saúde:
C10: ● 10% das despesas de saúde isentas de IVA ou sujeitas à taxa reduzida de 6%;
C11: ● 10% das despesas de saúde não reembolsadas sujeitas a IVA à taxa de 23%, suportadas por receita médica, com limite de 65 Euros ou 2.5% das despesas referidas acima, se superior;
C12: ● 10% das despesas incorridas pelos ascendentes e colaterais até ao 3º grau do sujeito passivo, desde que estes tenham um rendimento inferior ao salário mínimo nacional (485 Euros por mês) e juros de dívidas contraídas para o pagamento das referidas despesas;
C13: ● O total das deduções acima mencionadas não pode ultrapassar o limite de 838,44 Euros, exceto nos agregados com três ou mais dependentes em que o referido limite é elevado em 125,77 Euros por cada dependente, desde que todos tenham despesas de saúde.
C15: Despesas de educação
C17: ● 30% das despesas de educação e formação, com o limite de 760 Euros;
C18: ● Este limite é elevado em 142,50 Euros, por cada dependente, desde que o número de filhos dependentes seja de três ou mais e existam, relativamente a todos eles, despesas de educação ou formação.
C20: Encargos com imóveis e rendas
C22: ● 15% dos juros de empréstimos contraídos até 31 de dezembro de 2011 para aquisição, construção ou beneficiação de habitação própria e permanente, com o limite de 296 Euros; O referido limite é majorado em 50% e 20% para sujeitos passivos com rendimento colectável até 7.000 Euros e no intervalo de 7.000 Euros até 20.000 Euros, respetivamente.
C23: ● 15% das rendas pagas ao abrigo do Regime do Arrendamento Urbano (RAU) para habitação permanente, com limite de 414 Euros; O primeiro limite é majorado em 50% e 20% para sujeitos passivos com rendimento coletável até 7.000 Euros e no intervalo de 7.000 Euros até 20.000 Euros.
C25: Despesas com pensões de alimentos e similares
C27: ● 20% dos encargos com pensões de alimentos, desde que resultantes de sentença judicial ou acordo judicialmente homologado,com o limite de 419,22 Euros por mês e por beneficiário.
C29: Despesas com lares
C31: ● 25% das despesas com lares de terceira idade relativas aos sujeitos passivos, seus ascendentes e colaterais até ao 3º grau que não possuam rendimentos superiores ao salário mínimo nacional (485 Euros por mês) com o limite de 403,75 Euros.
C33: Despesas com prémios de seguros de saúde
C35: ● 10% dos prémios pagos, com os limites de 50 Euros para sujeitos passivos não casados ou separados judicialmente e de 100 Euros para casais;
C36: ● Estes limites são elevados em 25 Euros por cada filho dependente.
C38: Encargos com donativos
C40: ● 25% dos donativos destinados a igrejas, instituiçoes religiosas, instituições de caridade, museus, escolas, bibliotecas e outras entidades de cariz social, cultural ou científico reconhecidas pelo Estado, até ao limite de 15% da coleta.
C42: Contribuições para Planos Poupança Reforma (PPR)
C44: ● 20% dos valores aplicados no respetivo ano por sujeito passivo, com o limite máximo:
C45:  400 Euros por sujeito passivo com idade inferior a 35 anos;
C46:  350 Euros por sujeito passivo com idade compreendida entre os 35 e os 50 anos;
C47:  300 Euros por sujeito passivo com idade inferior a 50 anos.
C49: Limite à soma das deduções à coleta
C51: Rendimento coletável situado no 1º escalão Sem Limite
C52: Rendimento coletável situado no 2º escalão 1.250 Euros
C53: Rendimento coletável situado no 3º escalão 1.000 Euros
C54: Rendimento coletável situado no 4º escalão 500 Euros
C55: Rendimento colectável situado no 5º escalão 0 Euros
C57: ● As deduções à colecta incluem: despesas de saúde, educação e formação, encargos com lares, encargos com imóveis e pensões de alimentos;
C58: ● Estes limites são majorados em 10% por cada dependente ou afilhado civil que não seja sujeito passivo de IRS.
C60: Limite dos benefícios fiscais dedutíveis à coleta
C62: Rendimento coletável situado no 1º escalão Sem Limite
C63: Rendimento coletável situado no 2º escalão 100 Euros
C64: Rendimento coletável situado no 3º escalão 80 Euros
C65: Rendimento coletável situado no 4º escalão 60 Euros
C66: Rendimento coletável situado no 5º escalão 0 Euros
C68: ● As deduções com benefícios fiscais incluem: seguros de saúde, PPR's, encargos com donativos.

Sheet Informação 2019
C6: Deduções por dependentes e ascendentes
C8: À coleta do IRS devida pelos sujeitos passivos, é dedutível:
C9: a) € 600 por cada dependente
C10: b) € 525 por cada ascendente*
C12: * O ascendente terá que viver em comunhão de habitação com o sujeito passivo ou o sujeito passivo terá de incorrer em encargos com lares. Em qualquer dos casos o ascendente não pode auferir rendimento superior à pensão mínima do regime geral
C14: Deduções por despesas gerais
C16: 35% do valor suportado por qualquer membro do agregado familiar:
C17: ● limite global de € 250 para cada sujeito passivo;
C18: ● a dedução opera no ano em que as faturas foram emitidas;
C19: ● para beneficiar da dedução os sujeitos passivos devem pedir ao emitente a inclusão do seu número de identificação fiscal nas faturas;
C20: ● o valor da dedução é apurado com base nas faturas comunicadas à Autoridade Tributária (AT) pelos emitentes até 15 de fevereiro do ano seguinte ao da sua emissão;
C21: ● caso não haja opção pela tributação conjunta, o limite previsto é reduzido a metade, por sujeito passivo.
C22: 45% do valor suportado por qualquer membro do agregado familiar com o limite global de € 335, nas famílias monoparentais.
C24: Dedução por despesas de saúde
C26: 15% do valor suportado por qualquer membro do agregado familiar:
C27: ● limite global de € 1.000;
C28: ● são elegíveis para dedução as faturas que titulem prestações de serviços e aquisições de bens, isentos de IVA ou tributados à taxa reduzida, nas seguintes atividades:
C29: - atividade de saúde humana;
C30: - comércio a retalho de produtos farmacêuticos, em establecimentos especializados;
C31: - comércio a retalho de produtos médicos e ortopédicos, em establecimentos especializados;
C32: - prémios de seguros de saúde.
C34: Dedução por despesas com educação
C35: ã
C36: 30% do valor suportado por qualquer membro do agregado familiar com o limite global de € 800, este limite pode ser aumentado em € 200, quando a diferença seja relativa a arrendamento de imóvel ou de parte de imóvel, a membros do agregado familiar que não tenham mais de 25 anos (cuja localização se situe a uma distânica superior a 50 Kms);
C38: 40% do valor suportado por estudantes que frequentem estabelecimentos de ensino situados em território do interior, caso em que o limite global acima referido é elevado para € 1.000.
C39: ● caso não haja opção pela tributação conjunta, a dedução e o limite acima previstos são reduzidos para metade, por sujeito passivo.
C41: Despesas com pensões de alimentos e similares
C43: 20% dos encargos com pensões de alimentos, desde que resultantes de sentença judicial ou acordo judicialmente homologado
C45: Encargos com donativos
C47: 25% dos donativos destinados a igrejas, instituiçoes religiosas, instituições de caridade, museus, escolas, bibliotecas e outras entidades de cariz social, cultural ou científico reconhecidas pelo Estado, até ao limite de 15% da coleta
C49: Contribuições para Planos Poupança Reforma (PPR)
C51: 20% do valor aplicado com o limite de € 300, € 350 ou € 400 consoante a idade do sujeito passivo.
C53: Taxas IRS
C55: Rendimento Coletável (Euros) | F55: Taxas | G55: Parcela a abater (Euros)
C56: Até 7.091 | F56: 14,5% | G56: 0,00
C57: De mais de 7.091 até 10.700 | F57: 0.23 | G57: 602,74
C58: De mais de 10.700 até 20.261 | F58: 28,5% | G58: 1.191,24
C59: De mais de 20.261 até 25.000 | F59: 0.35 | G59: 2.508,20
C60: De mais de 25.000 até 36.856 | F60: 0.37 | G60: 3.008,20
C61: De mais de 36.856 até 80.640 | F61: 0.45 | G61: 5.956,68
C62: Superior a 80.640 | F62: 0.48 | G62: 8.375,89
C64: Cortes na função pública
C66: O corte dos funcionários públicos é reposto em 20% em cada trimestre de 2016.

Sheet BIG SIMULATOR (hidden)
A2: ANO 2015 | K2: DROP BOX | N2: Estado Civil
C3: =IF(AND(C92=2,C95=0),3,IF(AND(C92=2,C95>0),4,IF(AND(C92=1,C95=0),1,2))) -> 1 | N3: Solteiro / Viúvo / Divorciado | O3: 0
N4: Casado / Unido de facto | O4: 1
R6: 2013/2014 | S6: Continente
K7: DROP BOX | N7: Número de Filhos
N8: 0 | Q8: Rendimento colectável | S8: Taxa | T8: Parcela a abater | U8: Limite das deduções à colecta | V8: Limite do BF | Z8: SOBRETAXA 2013 | AE8: CES | AF8: 2012
N9: 1
N10: 2 | Q10: Minimo | R10: Máximo | Z10: DESCRIÇÃO - ANUAL | AB10: Euros | AE10: Para pensões superiores a 5,030.64 €
N11: 3 | Q11: 0 | R11: 4898 | S11: 0.115 | T11: 0 | U11: 1e+43 | V11: 1e+43 | AE11: Pensão bruta mensal | AG11: Taxa | AH11: Parcela
N12: 4 | Q12: =R11 -> 4898 | R12: 7410 | S12: 0.14 | T12: 122.45 | U12: 1e+43 | V12: 1e+43 | AE12: (Euros) | AG12: (%) | AH12: Abater
B13: DESCRIÇÃO | D13: 2012 | F13: 2013 | G13: 2014 | H13: 2015 | I13: Cálculo auxiliar com o novo rendimento coletável | J13: 2016 | K13: 2017 | L13: 2018 | N13: 5 | Q13: =R12 -> 7410 | R13: 18375 | S13: 0.245 | T13: 900.46 | U13: =1250+(1250*0.1*$C$95) -> 1250 | V13: 100 | Z13: RENDIMENTO BRUTO | AB13: =F22 -> 0 | AE13: De | AF13: Até | AH13: (Euros)
Q14: =R13 -> 18375 | R14: 42259 | S14: 0.355 | T14: 2921.81 | U14: =1200++(1200*0.1*$C$95) -> 1200 | V14: 80 | Z14: TOTAL | AB14: =+AB13 -> 0 | AE14: 0 | AF14: 5030.64 | AG14: 0 | AH14: 0
N15: Número de Ascendentes | Q15: =R14 -> 42259 | R15: 61244 | S15: 0.38 | T15: 3978.26 | U15: =1150+(1150*0.1*$C$95) -> 1150 | V15: 60 | AE15: =12*419.22 -> 5030.64 | AF15: =18*419.22 -> 7545.96 | AG15: 0.25 | AH15: =ROUND(0.25*AE15,2) -> 1257.66
B16: RENDIMENTO BRUTO | N16: 0 | O16: 0 | Q16: 61244 | R16: 66045 | S16: 0.415 | T16: 6121.95 | U16: =1100+(1100*0.1*$C$95) -> 1100 | V16: 50 | Z16: DEDUÇÕES ESPECÍFICAS | AB16: =F29 -> 0 | AE16: =AF15 -> 7545.96 | AF16: 99999999999 | AG16: 0.5 | AH16: =ROUND((AG16-AG15)*AF15+AH15,2) -> 3144.15
B17: TRABALHO DEPENDENTE - PRIVADO | D17: =IF(#REF!=1,IF(C93=1,#REF!,AF47),0) ->  | F17: =I122 -> 0 | G17: =J122 -> 0 | H17: =K122 -> 0 | J17: =L122 -> 0 | K17: =M122 -> 0 | L17: =N122 -> 0 | N17: 1 | O17: 1
B18: TRABALHO DEPENDENTE - FUNÇÃO PUBLICA | D18: =IF(#REF!=2,#REF!,0) ->  | F18: =I148 -> 0 | G18: =J148 -> 0 | H18: =K148 -> 0 | J18: =L148 -> 0 | K18: =M148 -> 0 | L18: =N148 -> 0 | N18: 2 | O18: 2
B19: TRABALHO INDEPENDENTE | N19: 3 | O19: 3 | Q19: =R16 -> 66045 | R19: 153300 | S19: 0.435 | T19: 7442.61 | U19: 0 | V19: 50
B20: PENSÕES DE VELHIÇE | F20: =H193 -> 0 | G20: =I193 -> 0 | H20: =J193 -> 0 | J20: =K193 -> 0 | K20: =L193 -> 0 | L20: =M193 -> 0 | N20: 4 | O20: 4 | Q20: 153300 | S20: 0.465 | T20: 12041.72 | U20: 0 | V20: 0 | Z20: RENDIMENTO LÍQUIDO/COLECTÁVEL | AB20: =AB14+AB16 -> 0 | AD20: =AB20-F31 -> 0
B21: PENSÕES DE SOBREVIVÊNCIA | D21: =IF(#REF!=3,AG47,0) -> 
B22: TOTAL | D22: =SUBTOTAL(109,D17:D21) ->  | F22: =SUBTOTAL(109,F17:F21) -> 0 | G22: =SUBTOTAL(109,G17:G21) -> 0 | H22: =SUBTOTAL(109,H17:H21) -> 0 | J22: =SUBTOTAL(109,J17:J21) -> 0 | K22: =SUBTOTAL(109,K17:K21) -> 0 | L22: =SUBTOTAL(109,L17:L21) -> 0 | Z22: RMMG (485 x 14 ) | AB22: =-6790*C92 -> -6790 | AE22: CES | AF22: 2013 e 2014
N23: Tributação conjunta | O23: 1
B24: DEDUÇÕES ESPECÍFICAS | N24: Tributação separada | O24: 2 | Z24: RENDIMENTO PARA EFEITOS DE SOBRETAXA | AB24: =IF(+AB20+AB22<0,0,+AB20+AB22) -> 0 | AE24: Para pensões superiores a 1,000.00 € (OE RECTIFICATIVO)
B25: TRABALHO DEPENDENTE - PRIVADO | D25: =-IF(IF(0.11*D17>$C$94*4104,0.11*D17,4104*$C$94)>D17,D17,IF(0.11*D17>$C$94*4104,0.11*D17,4104*$C$94)) ->  | F25: =-I124 -> 0 | G25: =-J124 -> 0 | H25: =-K124 -> 0 | J25: =-L124 -> 0 | K25: =-M124 -> 0 | L25: =-N124 -> 0 | Q25: 2013, 2014 e 2015 | S25: Continente | AE25: Pensão bruta mensal | AG25: Taxa | AH25: Parcela
B26: TRABALHO DEPENDENTE - FUNÇÃO PUBLICA | D26: =D18*0.3 ->  | F26: =-I150 -> 0 | G26: =-J150 -> 0 | H26: =-K150 -> 0 | J26: =-L150 -> 0 | K26: =-M150 -> 0 | L26: =-N150 -> 0 | Z26: SOBRETAXA A PAGAR (3.5%) | AB26: =AB24*0.035 -> 0 | AE26: (Euros) | AG26: (%) | AH26: Abater
B27: TRABALHO INDEPENDENTE | Q27: Rendimento colectável | S27: Taxa | T27: Parcela | U27: Limite das deduções à colecta | V27: Limite do BF | AE27: De | AF27: Até | AH27: (Euros)
B28: PENSÕES | D28: =-IF(D21<=4104*$C$94,D21,IF(AND(D21>4104*$C$94,D21<22500*$C$94),4104*$C$94,IF((4104*$C$94-(D21-22500*$C$94)*0.2)>0,(4104*$C$94-(D21-22500*$C$94)*0.2),0))) ->  | F28: =-H195 -> 0 | G28: =-I195 -> 0 | H28: =-J195 -> 0 | J28: =-K195 -> 0 | K28: =-L195 -> 0 | L28: =-M195 -> 0 | Q28: (Euros) | S28: (%) | T28: Abater | Z28: DEDUÇÃO À COLECTA POR FILHOS | AB28: =IF(AB24=0,0,-12.13*C95) -> 0 | AE28: 1000 | AF28: 1800 | AG28: 0.035 | AH28: 0
B29: TOTAL | D29: =SUBTOTAL(109,D24:D28) ->  | F29: =SUBTOTAL(109,F24:F28) -> 0 | G29: =SUBTOTAL(109,G24:G28) -> 0 | H29: =SUBTOTAL(109,H24:H28) -> 0 | J29: =SUBTOTAL(109,J24:J28) -> 0 | K29: =SUBTOTAL(109,K24:K28) -> 0 | L29: =SUBTOTAL(109,L24:L28) -> 0 | Q29: De | R29: Até | T29: (Euros) | AE29: 1800 | AF29: 3750 | AG29: 0.16 | AH29: =ROUND(+(AG29-AG28)*AF28+AH28,2) -> 225
O30: z | Q30: 0 | R30: 7000 | S30: 0.145 | T30: 0 | U30: 1e+43 | V30: 1e+43 | Z30: TOTAL A PAGAR | AB30: =+IF((AB26+AB28)<0,0,(AB26+AB28)) -> 0 | AE30: 3750 | AF30: 9999999999990 | AG30: 0.1 | AH30: 0
B31: RENDIMENTO LÍQUIDO/COLECTÁVEL | D31: =D22+D29 ->  | F31: =F22+F29 -> 0 | G31: =G22+G29 -> 0 | H31: =H22+H29 -> 0 | J31: =J22+J29 -> 0 | K31: =K22+K29 -> 0 | L31: =L22+L29 -> 0 | Q31: =R30 -> 7000 | R31: 20000 | S31: 0.285 | T31: =+(S31-S30)*R30+T30 -> 980 | U31: =1250+(1250*0.1*$C$95) -> 1250 | V31: 100
B33: DESPESAS EDUCAÇÃO | F33: 0 | G33: 0
B35: RENDIMENTO LÍQUIDO APÓS DEDUÇÃO EDUCAÇÃO | F35: =+F31 -> 0 | G35: =+G31 -> 0 | H35: =+IF(H31=0,0,H31-H33) -> 0 | I35: =+H35 -> 0 | J35: =+IF(J31=0,0,J31-J33) -> 0 | K35: =+IF(K31=0,0,K31-K33) -> 0 | L35: =+IF(L31=0,0,L31-L33) -> 0
Q36: 20000 | R36: 40000 | S36: 0.37 | T36: =+(S36-S31)*R31+T31 -> 2680 | U36: =1000+(1000*0.1*$C$95) -> 1000 | V36: 80 | AE36: Para pensões superiores a 4,611.42 €
B37: CÁLCULO DO IMPOSTO: | Q37: =R36 -> 40000 | R37: 80000 | S37: 0.45 | T37: =+(S37-S36)*R36+T36 -> 5880 | U37: =500+(500*0.1*$C$95) -> 500 | V37: 60 | AE37: Pensão bruta mensal | AG37: Taxa | AH37: Parcela
B38: COEFICIENTE CONJUGAL | D38: =IF(C92=2,#REF!/2,#REF!) ->  | F38: =IF((IF(C92=2,F31/2,F31))<0,0,IF(C92=2,F31/2,F31)) -> 0 | G38: =IF((IF(C92=2,G31/2,G31))<0,0,IF(C92=2,G31/2,G31)) -> 0 | H38: =H35/G240 -> 0 | I38: =IF(C92=1,I35,IF(AND(C92=2,C101=2),I35,I35/2)) -> 0 | J38: =IF((IF(C92=1,J31,IF(AND(C101=2,C92=2),J31,J31/2)))<0,0,(IF(C92=1,J31,IF(AND(C101=2,C92=2),J31,J31/2)))) -> 0 | K38: =IF((IF(C92=1,K31,IF(AND(C101=2,C92=2),K31,K31/2)))<0,0,(IF(C92=1,K31,IF(AND(C101=2,C92=2),K31,K31/2)))) -> 0 | L38: =IF((IF(C92=1,L31,IF(AND(C101=2,C92=2),L31,L31/2)))<0,0,(IF(C92=1,L31,IF(AND(C101=2,C92=2),L31,L31/2)))) -> 0 | Q38: =R37 -> 80000 | R38: 99999999999 | S38: 0.48 | T38: =+(S38-S37)*R37+T37 -> 8280 | U38: 0 | V38: 0 | AE38: (Euros) | AG38: (%) | AH38: Abater
B39: TAXA A APLICAR | D39: =VLOOKUP(#REF!,Q11:S20,3,TRUE) ->  | F39: =VLOOKUP(F38,Q30:T38,3,TRUE) -> 0.145 | G39: =VLOOKUP(G38,Q30:T38,3,TRUE) -> 0.145 | H39: =VLOOKUP(H38,Q30:T38,3,TRUE) -> 0.145 | I39: =VLOOKUP(I38,Q30:T38,3,TRUE) -> 0.145 | J39: =VLOOKUP(J38,Q67:T75,3,TRUE) -> 0.145 | K39: =VLOOKUP(K38,Q83:T91,3,TRUE) -> 0.145 | L39: =VLOOKUP(L38,Q110:T118,3,TRUE) -> 0.145 | Z39: SOBRETAXA 2014 | AE39: De | AF39: Até | AH39: (Euros)
B40: =" TAXA DE "&F39*100&" %" -> TAXA DE 14.5 % | D40: =IFERROR(ROUND(D39*D38,2),"") ->  | F40: =IFERROR(ROUND(F39*F38,2),"") -> 0 | G40: 0 | H40: 0 | I40: 0 | J40: 0 | K40: 0 | L40: =IFERROR(ROUND(L39*L38,2),"") -> 0 | Q40: 2016 | AE40: 0 | AF40: =AE41 -> 4611.42 | AG40: 0 | AH40: 0
B41: PARCELA A ABATER | D41: =-VLOOKUP(#REF!,Q11:T20,4,TRUE) ->  | F41: =-VLOOKUP(F38,Q30:T38,4,TRUE) -> 0 | G41: =-VLOOKUP(G38,Q30:T38,4,TRUE) -> 0 | H41: =-VLOOKUP(H38,Q30:T38,4,TRUE) -> 0 | I41: =-VLOOKUP(I38,Q30:T38,4,TRUE) -> 0 | J41: =-VLOOKUP(J38,Q67:T75,4,TRUE) -> 0 | K41: =-VLOOKUP(K38,Q83:T91,4,TRUE) -> 0 | L41: =-VLOOKUP(L38,Q110:T118,4,TRUE) -> 0 | Z41: DESCRIÇÃO - ANUAL | AB41: Euros | AE41: 4611.42 | AF41: 7126.74 | AG41: 0.15 | AH41: =ROUND(0.15*AE41,2) -> 691.71
AE42: =AF41 -> 7126.74 | AF42: 99999999999 | AG42: 0.4 | AH42: =ROUND((AG42-AG41)*AF41+AH41,2) -> 2473.4
B43: SUB-TOTAL | D43: =IFERROR(ROUND((D40+D41),2),"") ->  | F43: =IFERROR(ROUND((F40+F41),2),"") -> 0 | G43: 0 | H43: 0 | I43: 0 | J43: 0 | K43: =IFERROR(ROUND((K40+K41),2),"") -> 0 | L43: =IFERROR(ROUND((L40+L41),2),"") -> 0 | Q43: Rendimento colectável | S43: Taxa | T43: Parcela | U43: Limite das deduções à colecta | V43: Limite do BF
Q44: (Euros) | S44: (%) | T44: Abater | Z44: RENDIMENTO BRUTO | AB44: =$G$22 -> 0
B45: COLECTA LÍQUIDA | D45: =IF(C92=2,D43*2,D43) ->  | F45: =IF(C92=2,F43*2,F43) -> 0 | G45: =IF(C92=2,G43*2,G43) -> 0 | H45: =IF((I45-(H43*G240))>J242,(I45-J242),H43*G240) -> 0 | I45: =IF(C92=1,I43,IF(AND(C92=2,C101=2),I43,I43*2)) -> 0 | J45: =IF(C92=1,J43,IF(AND(C92=2,C101=1),J43*2,J43)) -> 0 | K45: =IF(C92=1,K43,IF(AND(C92=2,C101=1),K43*2,K43)) -> 0 | L45: =ROUND(IF(C92=1,L43,IF(AND(C92=2,C101=1),L43*2,L43)),2) -> 0 | Q45: De | R45: Até | T45: (Euros) | Z45: TOTAL | AB45: =+AB44 -> 0
Q46: 0 | R46: 7035 | S46: 0.145 | T46: 0 | U46: 1e+43 | V46: 1e+43 | AE46: CES | AF46: 2015
B47: DEDUÇÕES À COLECTA | Q47: =R46 -> 7035 | R47: 80000 | S47: 0.285 | T47: =+(S47-S46)*R46+T46 -> 984.9 | U47: =IF(C95>=3,(1000+((2500-1000)*((Q48-J38)/(Q48-R46))))*(1+(0.05*C95)),(1000+((2500-1000)*((Q48-J38)/(Q48-R46))))) -> 2644.624135 | V47: 100 | Z47: DEDUÇÕES ESPECÍFICAS | AB47: =$G$29 -> 0
B48: DEDUÇÕES PESSOAIS | D48: =-IF(C92=2,522.5+C95*190,IF(C95=0,261.25,380+C95*190)) -> -261.25 | F48: =-H215-H216 -> -213.75 | G48: =-I215-I216 -> -213.75 | H48: =-J215-J216 -> 0 | J48: =-K215-K216 -> 0 | K48: =-L215-L216 -> 0 | L48: =-M215-M216 -> 0 | Q48: 80000 | R48: 1e+24 | U48: =IF(C95>=3,1000*(1+(0.05*C95)),1000) -> 1000 | AE48: Para pensões superiores a 4,611.42 €
Z49: RENDIMENTO LÍQUIDO/COLECTÁVEL | AB49: =AB45+AB47 -> 0 | AE49: Pensão bruta mensal | AG49: Taxa | AH49: Parcela
B50: DESPESAS DE SAÚDE | F50: =-IF(C95>2,IF(H91*0.1>838.44+(C95*125.77),838.44+(C95*125.77),0.1*H91),IF(H91*0.1>838.44,838.44,0.1*H91)) -> 0 | G50: =-IF(C95>2,IF(H91*0.1>838.44+(C95*125.77),838.44+(C95*125.77),0.1*H91),IF(H91*0.1>838.44,838.44,0.1*H91)) -> 0 | H50: =-IF(C92=1,IF(H91*0.15>1000,1000,0.15*H91),IF(C101=2,IF(H91*0.075>500,500,0.075*H91),IF(H91*0.15>1000,1000,0.15*H91))) -> 0 | J50: =-IF(C92=1,IF(H91*0.15>1000,1000,0.15*H91),IF(C101=2,IF(H91*0.075>500,500,0.075*H91),IF(H91*0.15>1000,1000,0.15*H91))) -> 0 | K50: =-IF(C92=1,IF(H91*0.15>1000,1000,0.15*H91),IF(C101=2,IF(H91*0.075>500,500,0.075*H91),IF(H91*0.15>1000,1000,0.15*H91))) -> 0 | L50: =-IF(C92=1,IF(H91*0.15>1000,1000,0.15*H91),IF(C101=2,IF(H91*0.075>500,500,0.075*H91),IF(H91*0.15>1000,1000,0.15*H91))) -> 0 | AE50: (Euros) | AG50: (%) | AH50: Abater
B51: DESPESAS DE EDUCAÇÃO | F51: =-IF(C97>2,IF(H92*0.3>760+(C97*142.5),760+(C97*142.5),0.3*H92),IF(H92*0.3>760,760,0.3*H92)) -> 0 | G51: =-IF(C97>2,IF(H92*0.3>760+(C97*142.5),760+(C97*142.5),0.3*H92),IF(H92*0.3>760,760,0.3*H92)) -> 0 | H51: =-IF($C$92=1,IF($H$92*0.3>800,800,0.3*$H$92),IF($C$101=2,IF($H$92*0.15>400,400,0.15*$H$92),IF($H$92*0.3>800,800,0.3*$H$92))) -> 0 | J51: =-IF($C$92=1,IF($H$92*0.3>800,800,0.3*$H$92),IF($C$101=2,IF($H$92*0.15>400,400,0.15*$H$92),IF($H$92*0.3>800,800,0.3*$H$92))) -> 0 | K51: =-IF($C$92=1,IF($H$92*0.3>800,800,0.3*$H$92),IF($C$101=2,IF($H$92*0.15>400,400,0.15*$H$92),IF($H$92*0.3>800,800,0.3*$H$92))) -> 0 | L51: =-IF($C$92=1,IF((H92*0.3)+(I92*0.3)>I101,I101,(H92*0.3)+(I92*0.3)),IF($C$101=2,IF(((H92*0.15)+(I92*0.15))>I101/2,I101/2,(H92*0.15)+(I92*0.15)),IF((H92*0.3)+(I92*0.3)>I101,I101,(H92*0.3)+(I92*0.3)))) -> 0 | Q51: 2015 | Z51: RMMG (485 x 14 ) | AB51: =-6790*$C$92 -> -6790 | AE51: De | AF51: Até | AH51: (Euros)
B52: ENCARGOS COM IMÓVEIS - JUROS | F52: =-IF(C100<=2011,IF(0.15*H93>VLOOKUP(F38,AK64:AN66,3,TRUE),VLOOKUP(F38,AK64:AN66,3,TRUE),0.15*H93),0) -> 0 | G52: =-IF(C100<=2011,IF('Simular IRS 2019'!O51<2011,IF(0.15*H93>VLOOKUP(G38,AK64:AP66,5,TRUE),VLOOKUP(G38,AK64:AP66,5,TRUE),0.15*H93),0),0) -> 0 | H52: =-IF($C$100<=2011,IF(H38>30000,IF($H$93*0.15>296,296,$H$93*0.15),IF(0.15*$H$93>VLOOKUP(H38,$AK$76:$AP$77,3,TRUE),VLOOKUP(H38,AK76:AP77,3,TRUE),0.15*$H$93)),0) -> 0 | J52: =-IF($C$100<=2011,IF(J38>30000,IF($H$93*0.15>296,296,$H$93*0.15),IF(0.15*$H$93>VLOOKUP(J38,$AK$82:$AN$83,3,TRUE),VLOOKUP(J38,AK82:AN83,3,TRUE),0.15*$H$93)),0) -> 0 | K52: =-IF(C100<=2011,IF(K38>30000,IF($H$93*0.15>296,296,$H$93*0.15),IF(0.15*$H$93>VLOOKUP(K38,$AK$101:$AN$102,3,TRUE),VLOOKUP(K38,AK101:AN102,3,TRUE),0.15*$H$93)),0) -> 0 | L52: =-IF(C100<=2011,IF(L38>30000,IF($H$93*0.15>296,296,$H$93*0.15),IF(0.15*$H$93>VLOOKUP(L38,$AK$114:$AN$115,3,TRUE),VLOOKUP(L38,AK114:AN115,3,TRUE),0.15*$H$93)),0) -> 0 | AE52: 0 | AF52: 4611.42 | AG52: 0 | AH52: 0
B53: RENDAS | F53: =-IF(0.15*H94>VLOOKUP(F38,AK58:AP60,3),VLOOKUP(F38,AK58:AP60,3),0.15*H94) -> 0 | G53: =-IF(0.15*H94>VLOOKUP(G38,AK58:AP60,5),VLOOKUP(G38,AK58:AP60,5),0.15*H94) -> 0 | H53: =-IF(C100<=2011,IF(H38>30000,IF(H94*0.15>502,502,H94*0.15),IF(0.15*H94>VLOOKUP(H38,AK71:AP72,3,TRUE),VLOOKUP(H38,AK71:AP72,3,TRUE),0.15*H94)),0) -> 0 | J53: =-IF(C92<>"",IF(J38>30000,IF(H94*0.15>502,502,H94*0.15),IF(0.15*H94>VLOOKUP(J38,AK71:AP72,5,TRUE),VLOOKUP(J38,AK71:AP72,5,TRUE),0.15*H94)),0) -> 0 | K53: =-IF(C92<>"",IF(K38>30000,IF(H94*0.15>502,502,H94*0.15),IF(0.15*H94>VLOOKUP(K38,AK94:AN95,3,TRUE),VLOOKUP(K38,AK94:AN95,3,TRUE),0.15*H94)),0) -> 0 | L53: =-IF(H94<>"",IF(L38>30000,IF(H94*0.15>502,502,H94*0.15),IF(0.15*H94>VLOOKUP(L38,AK107:AN108,3,TRUE),VLOOKUP(L38,AK107:AN108,3,TRUE),0.15*H94)),0) -> 0 | Q53: Rendimento colectável | S53: Taxa | T53: Parcela | U53: Limite das deduções à colecta | V53: Limite do BF | AE53: 4611.42 | AF53: 7126.74 | AG53: 0.15 | AH53: =ROUND(0.15*AE53,2) -> 691.71
B54: DESPESAS GERAIS | H54: =-IF(C92=1,IF(C95<>0,IF(0.45*H96>335,335,0.45*H96),IF(0.35*H96>250,250,0.35*H96)),IF(C101=1,IF(0.35*H96>500,500,0.35*H96),IF(0.35*H96>250,250,0.35*H96))) -> 0 | J54: =-IF(C92=1,IF(C95<>0,IF(0.45*H96>335,335,0.45*H96),IF(0.35*H96>250,250,0.35*H96)),IF(C101=1,IF(0.35*H96>500,500,0.35*H96),IF(0.35*H96>250,250,0.35*H96))) -> 0 | K54: =-IF(C92=1,IF(C95<>0,IF(0.45*H96>335,335,0.45*H96),IF(0.35*H96>250,250,0.35*H96)),IF(C101=1,IF(0.35*H96>500,500,0.35*H96),IF(0.35*H96>250,250,0.35*H96))) -> 0 | L54: =-IF(C92=1,IF(C95<>0,IF(0.45*H96>335,335,0.45*H96),IF(0.35*H96>250,250,0.35*H96)),IF(C101=1,IF(0.35*H96>500,500,0.35*H96),IF(0.35*H96>250,250,0.35*H96))) -> 0 | Q54: (Euros) | S54: (%) | T54: Abater | AE54: =AF53 -> 7126.74 | AF54: 99999999999 | AG54: 0.4 | AH54: =ROUND((AG54-AG53)*AF53+AH53,2) -> 2473.4
B55: PENSÃO DE ALIMENTOS | F55: =-IF(0.2*H95>419.22*12*C99,419.22*12*C99,0.2*H95) -> 0 | G55: =-IF(0.2*H95>419.22*12*C99,419.22*12*C99,0.2*H95) -> 0 | H55: =-0.2*H95 -> 0 | J55: =-0.2*H95 -> 0 | K55: =-0.2*H95 -> 0 | L55: =-0.2*H95 -> 0 | Q55: De | R55: Até | T55: (Euros) | Z55: RENDIMENTO PARA EFEITOS DE SOBRETAXA | AB55: =IF(+AB49+AB51<0,0,+AB49+AB51) -> 0 | AK55: Rendimento colectável | AM55: Limite Dedução Rendas 2013 | AO55: Limite Dedução Rendas 2014
B56: TOTAL (SAUDE; EDUCAÇÃO; IMOVEIS; RENDAS; PENSÕES DE ALIMENTOS) | D56: =SUM(D50:D55) -> 0 | F56: =SUM(F50:F55) -> 0 | G56: =SUM(G50:G55) -> 0 | H56: =SUM(H50:H55) -> 0 | J56: =SUM(J50:J55) -> 0 | K56: =SUM(K50:K55) -> 0 | L56: =SUM(L50:L55) -> 0 | Q56: 0 | R56: 7000 | S56: 0.145 | T56: 0 | U56: 1e+43 | V56: 1e+43 | AK56: (Euros)
Q57: =R56 -> 7000 | R57: 80000 | S57: 0.285 | T57: =+(S57-S56)*R56+T56 -> 980 | U57: =IF(C95>=3,(1000+((2500-1000)*((80000-H38)/(80000-7000))))*(1+(0.05*C95)),(1000+((2500-1000)*((80000-H38)/(80000-7000))))) -> 2643.835616 | V57: 100 | Z57: SOBRETAXA A PAGAR (3.5%) | AB57: =IF(AB55*0.035<0,0,AB55*0.035) -> 0 | AK57: De | AL57: Até
B58: LIMITE OU SOMA | F58: =IF(-VLOOKUP(F38,Q30:U38,5,TRUE)<F56,F56,-VLOOKUP(F38,Q30:U38,5,TRUE)) -> 0 | G58: =IF(-VLOOKUP(G38,Q30:U38,5,TRUE)<G56,G56,-VLOOKUP(G38,Q30:U38,5,TRUE)) -> 0 | H58: =IF(-VLOOKUP(H38,$Q$56:$U$58,5,TRUE)>(H56-H54+H63),-VLOOKUP(H38,$Q$56:$U$58,5,TRUE),(H56-H54+H63)) -> 0 | J58: =IF(-VLOOKUP(J38,$Q$46:$U$48,5,TRUE)>(J56-J54+J63),-VLOOKUP(J38,$Q$46:$U$48,5,TRUE),(J56-J54+J63)) -> 0 | K58: =IF(-VLOOKUP(K38,$Q$100:$U$102,5,TRUE)>(K56-K54+K63),-VLOOKUP(K38,$Q$100:$U$102,5,TRUE),(K56-K54+K63)) -> 0 | L58: =IF(-VLOOKUP(L38,$Q$127:$U$129,5,TRUE)>(L56-L54+L63),-VLOOKUP(L38,$Q$127:$U$129,5,TRUE),(L56-L54+L63)) -> 0 | Q58: 80000 | R58: 1e+24 | U58: =IF(C95>=3,1000*(1+(0.05*C95)),1000) -> 1000 | AE58: IAS | AF58: 419.22 | AK58: 0 | AL58: 7000 | AM58: =AM60*1.5 -> 753 | AO58: =AO60*1.5 -> 621
Z59: DEDUÇÃO À COLECTA POR FILHOS | AB59: =IF(AB55=0,0,-12.13*$C$95) -> 0 | AK59: =AL58 -> 7000 | AL59: 20000 | AM59: =AM60*1.2 -> 602.4 | AO59: =AO60*1.2 -> 496.8
B60: SEGUROS DE SAÚDE | F60: =-IF((0.1*H97)>(50*C92)+(25*C95),(50*C92)+(25*C95),(0.1*H97)) -> 0 | G60: =-IF((0.1*H97)>(50*C92)+(25*C95),(50*C92)+(25*C95),(0.1*H97)) -> 0 | AE60: CES | AF60: 2016 | AK60: 20000 | AL60: 999999999 | AM60: =ROUNDDOWN(591*0.85,0) -> 502 | AO60: =ROUNDUP(591*0.7,0) -> 414
B61: CONTRIBUIÇÕES PARA PPR | F61: =-IF((0.2*H100)>(400),(400),(0.2*H100))-IF((0.2*H99)>(400),(400),(0.2*H99)) -> 0 | G61: =-IF((0.2*H100)>(400),(400),(0.2*H100))-IF((0.2*H99)>(400),(400),(0.2*H99)) -> 0 | H61: =-IF('Simular IRS 2019'!F12<35,IF(0.2*'BIG SIMULATOR'!H99>400,400,0.2*'BIG SIMULATOR'!H99),IF(AND('Simular IRS 2019'!F12>=35,'Simular IRS 2019'!F12<=50),IF(0.2*'BIG SIMULATOR'!H99>350,350,0.2*'BIG SIMULATOR'!H99),IF(0.2*'BIG SIMULATOR'!H99>300,300,0.2*'BIG SIMULATOR'!H99)))+IF('Simular IRS 2019'!F14<35,IF(0.2*'BIG SIMULATOR'!H100>400,400,0.2*'BIG SIMULATOR'!H100),IF(AND('Simular IRS 2019'!F14>=35,'Simular IRS 2019'!F14<=50),IF(0.2*'BIG SIMULATOR'!H100>350,350,0.2*'BIG SIMULATOR'!H100),IF(0.2*'BIG SIMULATOR'!H100>300,300,0.2*'BIG SIMULATOR'!H100))) -> 0 | J61: =-IF('Simular IRS 2019'!F12<35,IF(0.2*'BIG SIMULATOR'!H99>400,400,0.2*'BIG SIMULATOR'!H99),IF(AND('Simular IRS 2019'!F12>=35,'Simular IRS 2019'!F12<=50),IF(0.2*'BIG SIMULATOR'!H99>350,350,0.2*'BIG SIMULATOR'!H99),IF(0.2*'BIG SIMULATOR'!H99>300,300,0.2*'BIG SIMULATOR'!H99)))+IF('Simular IRS 2019'!F14<35,IF(0.2*'BIG SIMULATOR'!H100>400,400,0.2*'BIG SIMULATOR'!H100),IF(AND('Simular IRS 2019'!F14>=35,'Simular IRS 2019'!F14<=50),IF(0.2*'BIG SIMULATOR'!H100>350,350,0.2*'BIG SIMULATOR'!H100),IF(0.2*'BIG SIMULATOR'!H100>300,300,0.2*'BIG SIMULATOR'!H100))) -> 0 | K61: =-IF('Simular IRS 2019'!F12<35,IF(0.2*'BIG SIMULATOR'!H99>400,400,0.2*'BIG SIMULATOR'!H99),IF(AND('Simular IRS 2019'!F12>=35,'Simular IRS 2019'!F12<=50),IF(0.2*'BIG SIMULATOR'!H99>350,350,0.2*'BIG SIMULATOR'!H99),IF(0.2*'BIG SIMULATOR'!H99>300,300,0.2*'BIG SIMULATOR'!H99)))+IF('Simular IRS 2019'!F14<35,IF(0.2*'BIG SIMULATOR'!H100>400,400,0.2*'BIG SIMULATOR'!H100),IF(AND('Simular IRS 2019'!F14>=35,'Simular IRS 2019'!F14<=50),IF(0.2*'BIG SIMULATOR'!H100>350,350,0.2*'BIG SIMULATOR'!H100),IF(0.2*'BIG SIMULATOR'!H100>300,300,0.2*'BIG SIMULATOR'!H100))) -> 0 | L61: =-IF('Simular IRS 2019'!F12<35,IF(0.2*'BIG SIMULATOR'!H99>400,400,0.2*'BIG SIMULATOR'!H99),IF(AND('Simular IRS 2019'!F12>=35,'Simular IRS 2019'!F12<=50),IF(0.2*'BIG SIMULATOR'!H99>350,350,0.2*'BIG SIMULATOR'!H99),IF(0.2*'BIG SIMULATOR'!H99>300,300,0.2*'BIG SIMULATOR'!H99)))+IF('Simular IRS 2019'!F14<35,IF(0.2*'BIG SIMULATOR'!H100>400,400,0.2*'BIG SIMULATOR'!H100),IF(AND('Simular IRS 2019'!F14>=35,'Simular IRS 2019'!F14<=50),IF(0.2*'BIG SIMULATOR'!H100>350,350,0.2*'BIG SIMULATOR'!H100),IF(0.2*'BIG SIMULATOR'!H100>300,300,0.2*'BIG SIMULATOR'!H100))) -> 0 | Z61: TOTAL A PAGAR | AB61: =+IF((AB57+AB59)<0,0,AB57+AB59) -> 0 | AK61: Rendimento colectável | AM61: Limite Dedução Juros 2013 | AO61: Limite Dedução Juros 2014
B62: ENCARGOS COM DONATIVOS | F62: =IF(0.25*H101*1.3>0.15*F45,-0.15*F45,-0.25*H101*1.3) -> 0 | G62: =IF(0.25*H101*1.3>0.15*G45,-0.15*G45,-0.25*H101*1.3) -> 0 | H62: =IF(0.25*H101*1.3>0.15*H45,-0.15*H45,-0.25*H101*1.3) -> 0 | J62: =IF(0.25*H101*1.3>0.15*J45,-0.15*J45,-0.25*H101*1.3) -> 0 | K62: =IF(0.25*H101*1.3>0.15*K45,-0.15*K45,-0.25*H101*1.3) -> 0 | L62: =IF(0.25*H101*1.3>0.15*L45,-0.15*L45,-0.25*H101*1.3) -> 0 | Q62: 2016 | S62: Continente | AE62: Para pensões superiores a 4,611.42 € | AK62: (Euros)
B63: TOTAL (EBF) | F63: =SUM(F60:F62) -> 0 | G63: =SUM(G60:G62) -> 0 | H63: =SUM(H60:H62) -> 0 | J63: =SUM(J60:J62) -> 0 | K63: =SUM(K60:K62) -> 0 | L63: =SUM(L60:L62) -> 0 | AE63: Pensão bruta mensal | AG63: Taxa | AH63: Parcela | AK63: De | AL63: Até
Q64: Rendimento colectável | S64: Taxa | T64: Parcela | U64: Limite das deduções à colecta | V64: Limite do BF | AE64: (Euros) | AG64: (%) | AH64: Abater | AK64: 0 | AL64: 7000 | AM64: 444 | AO64: 444
B65: LIMITE OU SOMA | F65: =IF(-VLOOKUP(F38,Q30:V38,6,TRUE)<F63,F63,-VLOOKUP(F38,Q30:V38,6,TRUE)) -> 0 | G65: =IF(-VLOOKUP(G38,Q30:V38,6,TRUE)<G63,G63,-VLOOKUP(G38,Q30:V38,6,TRUE)) -> 0 | H65: =SUM(H63) -> 0 | J65: =SUM(J63) -> 0 | K65: =SUM(K63) -> 0 | L65: =SUM(L63) -> 0 | Q65: (Euros) | S65: (%) | T65: Abater | AE65: De | AF65: Até | AH65: (Euros) | AK65: =AL64 -> 7000 | AL65: 20000 | AM65: 355.2 | AO65: 355.2
Q66: De | R66: Até | T66: (Euros) | Z66: SOBRETAXA 2015 | AE66: 0 | AF66: 4611.42 | AG66: 0 | AH66: 0 | AK66: 20000 | AL66: 99999999 | AM66: 296 | AO66: 296
B67: TOTAL DAS DEDUÇÕES | D67: =IF(-(#REF!+D48)>D45,-D45,#REF!+D48) ->  | F67: =F48+F58+F65 -> -213.75 | G67: =G48+G58+G65 -> -213.75 | H67: =H48+H58+H54 -> 0 | J67: =J48+J58+J54 -> 0 | K67: =K48+K58+K54 -> 0 | L67: =L48+L58+L54 -> 0 | Q67: 0 | R67: 7035 | S67: 0.145 | T67: 0 | U67: 1e+43 | V67: 1e+43 | AE67: 4611.42 | AF67: 7126.74 | AG67: 0.075 | AH67: =ROUND(0.075*AE67,2) -> 345.86
Q68: =R67 -> 7035 | R68: 20100 | S68: 0.285 | T68: =+(S68-S67)*R67+T67 -> 984.9 | U68: =(1250+(1250*0.1*$C$95)) -> 1250 | V68: 100 | Z68: DESCRIÇÃO - ANUAL | AB68: Euros | AE68: =AF67 -> 7126.74 | AF68: 99999999999 | AG68: 0.2 | AH68: =ROUND((AG68-AG67)*AF67+AH67,2) -> 1236.7 | AK68: Rendimento colectável | AM68: Limite Dedução Rendas 2015 | AO68: Limite Dedução Rendas 2016 | AQ68: Limite Dedução Rendas 2017
B69: IMPOSTO APURADO | D69: =D45+D67 ->  | F69: =IF(F45+F67<0,0,F45+F67) -> 0 | G69: =IF(G45+G67<0,0,G45+G67) -> 0 | H69: =IF(H45+H67<0,0,H45+H67) -> 0 | J69: =IF(J45+J67<0,0,J45+J67) -> 0 | K69: =IF(K45+K67<0,0,K45+K67) -> 0 | L69: =IF(L45+L67<0,0,L45+L67) -> 0 | AK69: (Euros)
AK70: De | AL70: Até
B71: SOBRETAXA | D71: N/A | F71: =AB30 -> 0 | G71: =AB61 -> 0 | H71: =AB91 -> 0 | J71: =AB172 -> 0 | K71: =AB205 -> 0 | L71: =AB235 -> 0 | Z71: RENDIMENTO BRUTO | AB71: =H22 -> 0 | AF71: =AF58*17 -> 7126.74 | AK71: 0 | AL71: 7000 | AM71: 800 | AO71: 800 | AQ71: 800
Z72: TOTAL | AB72: =+AB71 -> 0 | AK72: =AL71 -> 7000 | AL72: 30000 | AM72: =502+((800-502)*((30000-H38)/(30000-7000))) -> 890.6956522 | AO72: =502+((800-502)*((30000-J38)/(30000-7000))) -> 890.6956522 | AQ72: =502+((800-502)*((30000-K38)/(30000-7000))) -> 890.6956522
B73: TAXA DE SOLIDARIEDADE | D73: =IF(D38>Q20,IF(C92=2,(D38-Q20)*0.025*2,(D38-Q20)*0.025),0) ->  | F73: =IF(C92=1,((VLOOKUP(F38,Z102:AC104,3,TRUE)*F38)-VLOOKUP(F38,Z102:AC104,4,TRUE)),(((VLOOKUP(F38,Z102:AC104,3,TRUE)*F38)-VLOOKUP(F38,Z102:AC104,4,TRUE))*2)) -> 0 | G73: =IF($C$92=1,((VLOOKUP(G38,$Z$102:$AC$104,3,TRUE)*G38)-VLOOKUP(G38,$Z$102:$AC$104,4,TRUE)),(((VLOOKUP(G38,$Z$102:$AC$104,3,TRUE)*G38)-VLOOKUP(G38,$Z$102:$AC$104,4,TRUE))*2)) -> 0 | H73: =IF($C$92=1,((VLOOKUP(H38,$Z$102:$AC$104,3,TRUE)*H38)-VLOOKUP(H38,$Z$102:$AC$104,4,TRUE)),(((VLOOKUP(H38,$Z$102:$AC$104,3,TRUE)*H38)-VLOOKUP(H38,$Z$102:$AC$104,4,TRUE))*2)) -> 0 | J73: =IF($C$92=1,((VLOOKUP(J38,$Z$102:$AC$104,3,TRUE)*J38)-VLOOKUP(J38,$Z$102:$AC$104,4,TRUE)),(((VLOOKUP(J38,$Z$102:$AC$104,3,TRUE)*J38)-VLOOKUP(J38,$Z$102:$AC$104,4,TRUE))*2)) -> 0 | K73: =IF($C$92=1,((VLOOKUP(K38,$Z$102:$AC$104,3,TRUE)*K38)-VLOOKUP(K38,$Z$102:$AC$104,4,TRUE)),(((VLOOKUP(K38,$Z$102:$AC$104,3,TRUE)*K38)-VLOOKUP(K38,$Z$102:$AC$104,4,TRUE))*2)) -> 0 | L73: =IF($C$92=1,((VLOOKUP(L38,$Z$102:$AC$104,3,TRUE)*L38)-VLOOKUP(L38,$Z$102:$AC$104,4,TRUE)),(((VLOOKUP(L38,$Z$102:$AC$104,3,TRUE)*L38)-VLOOKUP(L38,$Z$102:$AC$104,4,TRUE))*2)) -> 0 | Q73: 20100 | R73: 40200 | S73: 0.37 | T73: =+(S73-S68)*R68+T68 -> 2693.4 | U73: =(1000+(1000*0.1*$C$95)) -> 1000 | V73: 80 | AK73: Rendimento colectável | AM73: Limite Dedução Juros 2015 | AO73: Limite Dedução Juros 2016 | AQ73: Limite Dedução Juros 2017
Q74: =R73 -> 40200 | R74: 80000 | S74: 0.45 | T74: =+(S74-S73)*R73+T73 -> 5909.4 | U74: =(500+(500*0.1*$C$95)) -> 500 | V74: 60 | Z74: DEDUÇÕES ESPECÍFICAS | AB74: =+H29 -> 0 | AE74: CES | AF74: 2017 | AK74: (Euros)
B75: VALOR FINAL | Q75: =R74 -> 80000 | R75: 99999999999 | S75: 0.48 | T75: =+(S75-S74)*R74+T74 -> 8309.4 | U75: 0 | V75: 0 | AK75: De | AL75: Até
B76: IMPOSTO REFERENTE A PENSÃO DE ALIMENTOS | H76: =+IFERROR(J176+J186,0) -> 0 | AE76: Para pensões superiores a 4,611.42 € | AK76: 0 | AL76: 7000 | AM76: 450 | AO76: 450 | AQ76: 450
B77: =IFERROR(IF((D69+#REF!+-#REF!+#REF!)>=0,"IMPOSTO A PAGAR","REEMBOLSO"),"IMPOSTO A PAGAR") -> IMPOSTO A PAGAR | D77: =D69+D73 ->  | F77: =IF((F69+F71+F73)<0,0,(F69+F71+F73)) -> 0 | G77: =IF((G69+G71+G73)<0,0,(G69+G71+G73)) -> 0 | H77: =IF((H69+H71+H73+H76)<0,0,(H69+H71+H73+H76)) -> 0 | J77: =IF((J69+J71+J73+J76)<0,0,(J69+J71+J73+J76)) -> 0 | K77: =IF((K69+K71+K73+K76)<0,0,(K69+K71+K73+K76)) -> 0 | L77: =IF((L69+L71+L73+L76)<0,0,(L69+L71+L73+L76)) -> 0 | AE77: Pensão bruta mensal | AG77: Taxa | AH77: Parcela | AK77: =AL76 -> 7000 | AL77: 30000 | AM77: =296+((450-296)*((30000-H38)/(30000-7000))) -> 496.8695652 | AO77: =296+((450-296)*((30000-J38)/(30000-7000))) -> 496.8695652 | AQ77: =296+((450-296)*((30000-K38)/(30000-7000))) -> 496.8695652
B78: VALOR FINAL COM MINIMO DE EXISTENCIA | H78: =IF(H77+H79<0,0,H77+H79) -> 0 | J78: =IF(J77+J79<0,0,J77+J79) -> 0 | K78: =IF(K77+K79<0,0,K77+K79) -> 0 | L78: =IF(L77+L79<0,0,L77+L79) -> 0 | N78: IAS | Q78: 2017 | S78: Continente | Z78: RENDIMENTO LÍQUIDO/COLECTÁVEL | AB78: =AB72+AB74 -> 0 | AE78: (Euros) | AG78: (%) | AH78: Abater
B79: Aplicação do mínimo de existência | H79: =ROUND(IF(IF(H22-H80<0,0,H22-H80)-H69<0,IF(H22-H80<0,0,H22-H80)-H69,0),2) -> 0 | J79: =ROUND(IF(IF(J22-J80<0,0,J22-J80)-J69<0,IF(J22-D80<0,0,J22-J80)-J69,0),2) -> 0 | K79: =ROUND(IF(IF(K22-K80<0,0,K22-K80)-K69<0,IF(K22-E80<0,0,K22-K80)-K69,0),2) -> 0 | L79: =ROUND(IF(IF(L22-L80<0,0,L22-L80)-L69<0,IF(L22-F80<0,0,L22-L80)-L69,0),2) -> 0 | N79: 421.32 | AE79: De | AF79: Até | AH79: (Euros) | AK79: Rendimento colectável | AM79: Limite Dedução Juros 2016
B80: Mínimo de existência | H80: =+IF($C$92=1,8500,8500*2) -> 8500 | J80: 8500 | K80: =+IF($C$92=1,8500,8500*2) -> 8500 | L80: =+IF($C$92=1,(1.5*14*N79),(1.5*14*N79)*2) -> 8847.72 | Q80: Rendimento colectável | S80: Taxa | T80: Parcela | U80: Limite das deduções à colecta | V80: Limite do BF | Z80: DESPESAS EDUCAÇÃO | AB80: =+H33 -> 0 | AE80: 0 | AF80: 4611.42 | AG80: 0 | AH80: 0 | AK80: (Euros)
Q81: (Euros) | S81: (%) | T81: Abater | AE81: 4611.42 | AF81: 7126.74 | AG81: 0.075 | AH81: =ROUND(0.075*AE81,2) -> 345.86 | AK81: De | AL81: Até
B82: TAXA EFECTIVA ANTES DAS DEDUÇÕES | D82: =(D45+D73)/D22 ->  | F82: =(F45+F71+F73)/F22 ->  | G82: =(G45+G71+G73)/G22 ->  | H82: =(H45+H71+H73)/H22 ->  | J82: =(J45+J71+J73)/J22 ->  | K82: =(K45+K71+K73)/K22 ->  | L82: =(L45+L71+L73)/L22 ->  | Q82: De | R82: Até | T82: (Euros) | Z82: RMMG (505 x 14 ) | AB82: =IF(AND(C92=2,C101=2),-7070,-7070*$C$92) -> -7070 | AE82: =AF81 -> 7126.74 | AF82: 99999999999 | AG82: 0.2 | AH82: =ROUND((AG82-AG81)*AF81+AH81,2) -> 1236.7 | AK82: 0 | AL82: 7091 | AM82: 450
B83: TAXA EFECTIVA | D83: =D77/D22 ->  | F83: =F77/F22 ->  | G83: =G77/G22 ->  | H83: =H77/(H22+$M$105+$N$105) ->  | J83: =J77/(J22+$M$105+$N$105) ->  | K83: =K77/(K22+$M$105+$N$105) ->  | L83: =L77/(L22+$M$105+$N$105) ->  | Q83: 0 | R83: 7091 | S83: 0.145 | T83: 0 | U83: 1e+43 | V83: 1e+43 | AK83: =AL82 -> 7091 | AL83: 30000 | AM83: =296+((450-296)*((30000-J38)/(30000-7035))) -> 497.1757022
B84: CES SOBRE AS PENSÕES | F84: =G199+J199 -> 0 | G84: =G202+J202 -> 0 | H84: =G206+J206 -> 0 | J84: =G208+J208 -> 0 | K84: 0 | L84: 0 | Q84: =R83 -> 7091 | R84: 20261 | S84: 0.285 | T84: =+(S84-S83)*R83+T83 -> 992.74 | U84: =(1250+(1250*0.1*$C$95)) -> 1250 | V84: 100
B85: RENDIMENTO LÍQUIDO | D85: =D22-D77 ->  | F85: =F22-F77-F84 -> 0 | G85: =G22-G77-G84 -> 0 | H85: =H22-H78-H84 -> 0 | J85: =J22-J78-J84 -> 0 | K85: =K22-K78-K84 -> 0 | L85: =L22-L78-L84 -> 0 | Z85: RENDIMENTO PARA EFEITOS DE SOBRETAXA | AB85: =IF(+AB78+AB82-AB80<0,0,+AB78+AB82-AB80) -> 0 | AK85: Rendimento colectável | AM85: Limite Dedução Rendas 2016
AK86: (Euros)
Z87: SOBRETAXA A PAGAR (3.5%) | AB87: =IF(AB85*0.035<0,0,AB85*0.035) -> 0 | AK87: De | AL87: Até
AK88: 0 | AL88: 7091 | AM88: 800
F89: DEDUÇÕES À COLETA | K89: RENDIMENTO | M89: Sujeito Passivo A | N89: Sujeito Passivo B | Q89: 20261 | R89: 40522 | S89: 0.37 | T89: =+(S89-S84)*R84+T84 -> 2714.925 | U89: =(1000+(1000*0.1*$C$95)) -> 1000 | V89: 80 | Z89: DEDUÇÃO À COLECTA POR FILHOS (c/ nº4 art 3º) | AB89: =IF(AB85=0,0,IF(C101=2,(-12.63*$C$95)/2,-12.63*$C$95)) -> 0 | AK89: =AL88 -> 7091 | AL89: 30000 | AM89: =502+((800-502)*((30000-J38)/(30000-7035))) -> 891.288047
Q90: =R89 -> 40522 | R90: 80640 | S90: 0.45 | T90: =+(S90-S89)*R89+T89 -> 5956.685 | U90: =(500+(500*0.1*$C$95)) -> 500 | V90: 60
C91: Solteiro / Viúvo / Divorciado | F91: Despesas de saúde | H91: ='Simular IRS 2019'!G31 -> 0 | I91: Rendas Imóveis | K91: Privado | M91: ='Simular IRS 2019'!G19 -> 0 | N91: ='Simular IRS 2019'!L19 -> 0 | Q91: =R90 -> 80640 | R91: 99999999999 | S91: 0.48 | T91: =+(S91-S90)*R90+T90 -> 8375.885 | U91: 0 | V91: 0 | Z91: TOTAL A PAGAR | AB91: =IF(+AB87+AB89<0,0,AB87+AB89) -> 0 | AK91: Rendimento colectável | AM91: Limite Dedução Rendas 2017
B92: Estado Civil: Solteiro (1), Casado (2) | C92: =IF(C91="Casado / Unido de facto",2,1) -> 1 | F92: Despesas de educação | H92: ='Simular IRS 2019'!G35+'Simular IRS 2019'!G46 -> 0 | I92: ='Simular IRS 2019'!G37 -> 0 | AK92: (Euros)
B93: Assume sempre que os filhos têm mais de 3 anos <=3 | C93: 0 | F93: Encargos com imóveis | H93: ='Simular IRS 2019'!G53 -> 0 | K93: Função Publica | M93: ='Simular IRS 2019'!G21 -> 0 | N93: ='Simular IRS 2019'!L21 -> 0 | AK93: De | AL93: Até
A94: VBA | B94: >3 | C94: 0 | F94: Rendas | H94: ='Simular IRS 2019'!G55 -> 0 | I94: Limite rendas | Q94: 2017 | AK94: 0 | AL94: 7091 | AM94: 800
A95: VBA | B95: Nº de dependentes*: | C95: =C93+C94 -> 0 | F95: Pensão de alimentos | H95: ='Simular IRS 2019'!G59 -> 0 | I95: =IF(AND((I92*0.3)>300,(H92*0.3)>800),200,IF(AND((I92*0.3)>300,(H92*0.3)>800),200,I92*0.3)) -> 0 | K95: REG. SIMPL (SERVIÇOS) | AK95: =AL94 -> 7091 | AL95: 30000 | AM95: =502+((800-502)*((30000-K38)/(30000-AK95))) -> 892.2396438
A96: VBA | B96: Nº de ascendentes | C96: 0 | F96: Despesas Gerais | H96: ='Simular IRS 2019'!G57 -> 0
B97: Nº de dependentes Educação | C97: ='Simular IRS 2019'!G44 -> 0 | F97: Seguros de saúde | H97: ='Simular IRS 2019'!G64 -> 0 | I97: Limite despesas | Q97: Rendimento colectável | S97: Taxa | T97: Parcela | U97: Limite das deduções à colecta | V97: Limite do BF | Z97: TAXA ADICIONAL DE SOLIDARIEDADE
B98: Nº de sujeitos passivos Educação | C98: =+'Simular IRS 2019'!G48 -> 0 | I98: =IF(H92*0.3>800,800,H92*0.3) -> 0 | Q98: (Euros) | S98: (%) | T98: Abater | AK98: Rendimento colectável | AM98: Limite Dedução Juros 2017
B99: Nº de beneficiários | C99: ='Simular IRS 2019'!G61 -> 0 | F99: PPR A | H99: ='Simular IRS 2019'!G67 -> 0 | K99: REG. SIMPL (VENDAS) | Q99: De | R99: Até | T99: (Euros) | AK99: (Euros)
B100: Ano de contrato | C100: ='Simular IRS 2019'!G51 -> 0 | F100: PPR B | H100: ='Simular IRS 2019'!G69 -> 0 | I100: Qual o limite? | Q100: 0 | R100: 7091 | S100: 0.145 | T100: 0 | U100: 1e+43 | V100: 1e+43 | AK100: De | AL100: Até
B101: Tipo de tributação | C101: =IF(C102="Tributação separada",2,1) -> 1 | F101: Donativos | H101: ='Simular IRS 2019'!G71 -> 0 | I101: =IF('Simular IRS 2019'!G35<>"",IF(AND('Simular IRS 2019'!G37<>"",IF(H92*0.3>800,800,H92*0.3)<=800),IF(AND(I95>200,I98>800),1000,I95+I98),800),300) -> 300 | K101: CONT. ORG. | M101: Tributação separada | Q101: =R100 -> 7091 | R101: 80640 | S101: 0.285 | T101: =+(S101-S100)*R100+T100 -> 992.74 | U101: =IF(C95>=3,(1000+((2500-1000)*((Q102-K38)/(Q102-R100))))*(1+(0.05*C95)),(1000+((2500-1000)*((Q102-K38)/(Q102-R100))))) -> 2644.617874 | V101: 100 | Z101: Escalões | AB101: Taxa | AC101: Parcela | AK101: 0 | AL101: 7091 | AM101: 450
C102: Tributação conjunta | M102: Tributação separada | Q102: 80640 | R102: 1e+24 | U102: =IF(C95>=3,1000*(1+(0.05*C95)),1000) -> 1000 | Z102: 0 | AA102: 80000 | AB102: 0 | AC102: 0 | AK102: =AL101 -> 7091 | AL102: 30000 | AM102: =296+((450-296)*((30000-K38)/(30000-AK102))) -> 497.6674669
B103: Nº ascendentes | C103: =C96 -> 0 | K103: PENSÕES VELHICE | M103: ='Simular IRS 2019'!G24 -> 0 | N103: ='Simular IRS 2019'!L24 -> 0 | Z103: 80000 | AA103: 250000 | AB103: 0.025 | AC103: 2000
Z104: 250000 | AA104: 1e+17 | AB104: 0.05 | AC104: 8250 | AK104: Rendimento colectável | AM104: Limite Dedução Rendas 2018
H105: =H92*0.3 -> 0 | K105: PENSÕES DE ALIMENTOS | M105: =+'Simular IRS 2019'!G26 -> 0 | N105: =+'Simular IRS 2019'!L26 -> 0 | Q105: 2018 | S105: Continente | AK105: (Euros)
H106: =+I92*0.3 -> 0 | AK106: De | AL106: Até
C107: RENDIMENTO | H107: =(H105+H106)/2 -> 0 | L107: TOTAL | M107: =SUM(M91,N91,M93,N93,M95,N95,M99,N99,M101,N101,M103,N103,M105,N105) -> 0 | Q107: Rendimento colectável | S107: Taxa | T107: Parcela | U107: Limite das deduções à colecta | V107: Limite do BF | AK107: 0 | AL107: 7091 | AM107: 800
Q108: (Euros) | S108: (%) | T108: Abater | AK108: =AL107 -> 7091 | AL108: 30000 | AM108: =502+((800-502)*((30000-L38)/(30000-AK108))) -> 892.2396438
C109: Trabalho Dependente - Privado | Q109: De | R109: Até | T109: (Euros)
I110: 2013 | J110: 2014 | K110: 2015 | L110: 2016 | M110: 2017 | N110: 2018 | Q110: 0 | R110: 7091 | S110: 0.145 | T110: 0 | U110: 1e+43 | V110: 1e+43
Q111: =R110 -> 7091 | R111: 10700 | S111: 0.23 | T111: =+(S111-S110)*R110+T110 -> 602.735 | U111: =(1250+(1250*0.1*$C$95)) -> 1250 | V111: 100 | AK111: Rendimento colectável | AM111: Limite Dedução Juros 2018
C112: Sujeito Passivo A | E112: Rendimento do trabalho dependente do sujeito passivo A | I112: =M91 -> 0 | J112: =I112 -> 0 | K112: =+I112 -> 0 | L112: =I112 -> 0 | M112: =I112 -> 0 | N112: =I112 -> 0 | Q112: =R111 -> 10700 | R112: 20261 | S112: 0.285 | T112: =(S112-S111)*R111+T111 -> 1191.235 | AK112: (Euros)
E113: Contribuições obrigatórias para a SS | I113: =I112*0.11 -> 0 | J113: =0.11*J112 -> 0 | K113: =0.11*K112 -> 0 | L113: =0.11*L112 -> 0 | M113: =0.11*M112 -> 0 | N113: =0.11*N112 -> 0 | AK113: De | AL113: Até
E114: Dedução mínima prevista para rendimentos da categoria | I114: 4104 | J114: 4104 | K114: 4104 | L114: 4104 | M114: 4104 | N114: 4104 | AK114: 0 | AL114: 7091 | AM114: 450
E115: Dedução aplicável | I115: =IF(I112>=I114,IF(I113=0,I114,IF(I113>I114,I113,I114)),I112) -> 0 | J115: 0 | K115: 0 | L115: 0 | M115: 0 | N115: 0 | Q115: =R112 -> 20261 | R115: 25000 | S115: 0.35 | T115: =(S115-S112)*R112+T112 -> 2508.2 | AK115: =AL114 -> 7091 | AL115: 30000 | AM115: =296+((450-296)*((30000-L38)/(30000-AK115))) -> 497.6674669
Q116: =R115 -> 25000 | R116: 36856 | S116: 0.37 | T116: =(S116-S115)*R115+T115 -> 3008.2 | U116: =(1000+(1000*0.1*$C$95)) -> 1000 | V116: 80
C117: Sujeito Passivo B | E117: Rendimento do trabalho dependente do sujeito passivo B | I117: =N91 -> 0 | J117: =I117 -> 0 | K117: =I117 -> 0 | L117: =I117 -> 0 | M117: =I117 -> 0 | N117: =I117 -> 0 | Q117: =R116 -> 36856 | R117: 80640 | S117: 0.45 | T117: =(S117-S116)*R116+T116 -> 5956.68 | U117: =(500+(500*0.1*$C$95)) -> 500 | V117: 60
E118: Contribuições obrigatórias para a SS | I118: =I117*0.11 -> 0 | J118: 0 | K118: 0 | L118: 0 | M118: 0 | N118: 0 | Q118: =R117 -> 80640 | R118: 99999999999 | S118: 0.48 | T118: =(S118-S117)*R117+T117 -> 8375.88 | U118: 0 | V118: 0
E119: Dedução mínima prevista para rendimentos da categoria | I119: 4104 | J119: 4104 | K119: 4104 | L119: 4104 | M119: 4104 | N119: 4104
E120: Dedução aplicável | I120: =IF(I117>=I119,IF(I118=0,I119,IF(I118>I119,I118,I119)),I117) -> 0 | J120: 0 | K120: 0 | L120: 0 | M120: 0 | N120: 0
Q121: 2018
C122: TOTAL SP A+B | E122: RENDIMENTO BRUTO DA CATEGORIA | I122: =I112+I117 -> 0 | J122: 0 | K122: 0 | L122: 0 | M122: 0 | N122: 0
C124: TOTAL SP A+B | E124: DEDUÇÃO ESPECÍFICA AOS REND. CATEGORIA | I124: =I115+I120 -> 0 | J124: 0 | K124: 0 | L124: 0 | M124: 0 | N124: 0 | Q124: Rendimento colectável | S124: Taxa | T124: Parcela | U124: Limite das deduções à colecta | V124: Limite do BF
Q125: (Euros) | S125: (%) | T125: Abater
Q126: De | R126: Até | T126: (Euros)
Q127: 0 | R127: 7091 | S127: 0.145 | T127: 0 | U127: 1e+43 | V127: 1e+43
C128: Trabalho Dependente - FP | Q128: =R127 -> 7091 | R128: 80640 | S128: 0.285 | T128: =+(S128-S127)*R127+T127 -> 992.74 | U128: =IF(C95>=3,(1000+((2500-1000)*((80000-L38)/(80000-7035))))*(1+(0.05*C95)),(1000+((2500-1000)*((80000-L38)/(Q129-7035))))) -> 2630.324027 | V128: 100 | Z128: SOBRETAXA 2016
I129: 2013 | J129: 2014 | K129: 2015 | L129: 2016 | M129: 2017 | N129: 2018 | Q129: 80640 | R129: 1e+24 | U129: =IF(C95>=3,1000*(1+(0.05*C95)),1000) -> 1000
Z130: DESCRIÇÃO - ANUAL | AB130: Euros
C131: Sujeito Passivo A | E131: Rendimento estimado | H131: A | I131: =M93 -> 0 | J131: =M93 -> 0 | K131: =M93 -> 0 | L131: =M93 -> 0 | M131: =M93 -> 0 | N131: =M93 -> 0
E132: Corte | H132: B | I132: =ROUND(IF((I131/14)<=1500,0,IF(AND((I131/14)>1500,(I131/14)<=2000),0.035*I131/14,IF(AND((I131/14)>2000,(I131/14)<=4165),0.035*2000+((I131/14)-2000)*0.16,0.1*I131/14))),2)*14 -> 0 | J132: =+L266 -> 0 | K132: =IF((K131/14)<1500,0,IF(AND((K131/14)>1500,(K131/14)<=2000),3.5%*(K131/14),IF(AND((K131/14)>2000,(K131/14)<4165),3.5%*2000+16%*((K131/14)-2000),10%*(K131/14))))*14 -> 0 | L132: =L281 -> 0 | M132: =L296 -> 0 | N132: =N311 -> 0
E133: Reversão | H133: C | I133: 0 | J133: 0 | K133: =K132*0.2 -> 0 | Z133: RENDIMENTO BRUTO | AB133: =J22 -> 0
E134: Rendimento depois de corte | H134: D | I134: =I131-I132 -> 0 | J134: =J131-J132 -> 0 | K134: =K131-K132+K133 -> 0 | L134: =L131-L132+L133 -> 0 | M134: =M131-M132+M133 -> 0 | N134: =N131-N132+N133 -> 0 | Z134: TOTAL | AB134: =AB133 -> 0
E135: Contribuições estimadas para a ss | H135: E | I135: =I134*(0.11+0.0225) -> 0 | J135: =J134*(0.11+0.035) -> 0 | K135: =K134*(0.11+0.035) -> 0 | L135: =L134*(0.11+0.035) -> 0 | M135: =M134*(0.11+0.035) -> 0 | N135: =N134*(0.11+0.035) -> 0
E136: Dedução mínima prevista para rendimentos da categoria | H136: F | I136: 4104 | J136: 4104 | K136: 4104 | L136: 4104 | M136: 4104 | N136: 4104 | Z136: DEDUÇÕES ESPECÍFICAS | AB136: =J29 -> 0
E137: Dedução aplicável | H137: G | I137: =IF(I131>=I136,IF(I135=0,I136,IF(I135>I136,I135,I136)),I131) -> 0 | J137: 0 | K137: 0 | L137: 0 | M137: 0 | N137: 0
C140: Sujeito Passivo B | E140: Rendimento antes de corte | H140: 1 | I140: =N93 -> 0 | J140: =I140 -> 0 | K140: =+N93 -> 0 | L140: =N93 -> 0 | M140: =N93 -> 0 | N140: =N93 -> 0 | Z140: RENDIMENTO LÍQUIDO/COLECTÁVEL | AB140: =AB134+AB136 -> 0
E141: Corte | H141: 2 | I141: =ROUND(IF((I140/14)<=1500,0,IF(AND((I140/14)>1500,(I140/14)<=2000),0.035*I140/14,IF(AND((I140/14)>2000,(I140/14)<=4165),0.035*2000+((I140/14)-2000)*0.16,0.1*I140/14))),2)*14 -> 0 | J141: =+N266 -> 0 | K141: =IF((K140/14)<1500,0,IF(AND((K140/14)>1500,(K140/14)<=2000),3.5%*(K140/14),IF(AND((K140/14)>2000,(K140/14)<4165),3.5%*2000+16%*((K140/14)-2000),10%*(K140/14))))*14 -> 0 | L141: =N281 -> 0 | M141: =N296 -> 0 | N141: =N311 -> 0
E142: Reversão | I142: 0 | J142: 0 | K142: =0.2*K141 -> 0 | L142: 0 | M142: 0 | N142: 0 | Z142: DESPESAS EDUCAÇÃO | AB142: =H33 -> 0 | AE142: Tabela da Sobretaxa (2016)
E143: Rendimento depois de corte | H143: 3 | I143: =I140-I141 -> 0 | J143: =+J140-J141 -> 0 | K143: =K140-K141+K142 -> 0 | L143: =L140-L141+L142 -> 0 | M143: =M140-M141+M142 -> 0 | N143: =N140-N141+N142 -> 0 | AE143: Rendimento Coletável (euros)
E144: Contribuições estimadas para a ss | H144: 4 | I144: =I143*(0.11+0.0225) -> 0 | J144: =J143*(0.11+0.035) -> 0 | K144: =K143*(0.11+0.035) -> 0 | L144: =L143*(0.11+0.035) -> 0 | M144: =M143*(0.11+0.035) -> 0 | N144: =N143*(0.11+0.035) -> 0 | Z144: RMMG (530 x 14 = 7420 ) | AB144: =IF(AND(C92=2,C101=2),-7420,-7420*$C$92) -> -7420 | AE144: 0 | AF144: 7070 | AG144: 0
E145: Dedução mínima prevista para rendimentos da categoria | H145: 5 | I145: 4104 | J145: 4104 | K145: 4104 | L145: 4104 | M145: 4104 | N145: 4104 | AE145: 7070.0001 | AF145: 20000 | AG145: 0.01
E146: Dedução aplicável | H146: 6 | I146: =IF(I140>=I145,IF(I144=0,I145,IF(I144>I145,I144,I145)),I140) -> 0 | J146: 0 | K146: 0 | L146: 0 | M146: 0 | N146: 0 | AE146: 20000.001 | AF146: 40000 | AG146: 0.0175
Z147: RENDIMENTO PARA EFEITOS DE SOBRETAXA | AB147: =IF(+AB140+AB144-AB142<0,0,+AB140+AB144-AB142) -> 0 | AE147: 40000.001 | AF147: 80000 | AG147: 0.03
C148: TOTAL SP A+B | E148: RENDIMENTO BRUTO DA CATEGORIA | I148: =I134+I143 -> 0 | J148: 0 | K148: 0 | L148: 0 | M148: 0 | N148: 0 | AE148: 80000.001 | AF148: 1e+17 | AG148: 0.035
Z149: SOBRETAXA A PAGAR | AB149: =IF((VLOOKUP(IF(C92=1,AB140,IF(AND(C92=2,C101=1),AB140/2,AB140)),AE144:AG148,3,TRUE)*AB147)<0,0,VLOOKUP(IF(C92=1,AB140,IF(AND(C92=2,C101=1),AB140/2,AB140)),AE144:AG148,3,TRUE)*AB147) -> 0
C150: TOTAL SP A+B | E150: DEDUÇÃO ESPECÍFICA AOS REND. CATEGORIA | I150: =I137+I146 -> 0 | J150: 0 | K150: 0 | L150: 0 | M150: 0 | N150: 0
Z151: DEDUÇÃO À COLECTA POR FILHOS (2.5%*530=13.25) | AB151: =IF(AND(C92=2,C101=2),(IF(AB147=0,0,IF(C101=2,(-13.25*$C$95)/2,-13.25*$C$95)))/2,IF(AB147=0,0,IF(C101=2,(-13.25*$C$95)/2,-13.25*$C$95))) -> 0
Z153: TOTAL A PAGAR
C154: Trabalho Independente
H155: 2013 | I155: 2014 | J155: 2015
C156: Sujeito Passivo A | E156: Regime Simplificado
E157: Vendas (20%) | H157: =$M$99*0.2 -> 0 | I157: =$M$99*0.2 -> 0 | J157: =$M$99*0.2 -> 0
E158: Prestação de Serviços (75%) | H158: =0.75*$M$95 -> 0 | I158: =0.75*$M$95 -> 0 | J158: =0.75*$M$95 -> 0
E160: Contabilidade Organizada
E161: Rendimento Líquido | H161: =$M$101 -> Tributação separada | I161: =$M$101 -> Tributação separada | J161: =$M$101 -> Tributação separada
C163: Sujeito Passivo B | E163: Regime Simplificado
E164: Vendas (20%) | H164: =0.2*$N$99 -> 0 | I164: =0.2*$N$99 -> 0 | J164: =0.2*$N$99 -> 0
E165: Prestação de Serviços (70%) | H165: =0.7*$N$95 -> 0 | I165: =0.7*$N$95 -> 0 | J165: =0.7*$N$95 -> 0
E167: Contabilidade Organizada
E168: Rendimento Líquido | H168: =$N$101 -> 0 | I168: =$N$101 -> 0 | J168: =$N$101 -> 0
C170: TOTAL | E170: RENDIMENTO BRUTO DA CATEGORIA B | H170: =+H157+H158+H161+H164+H165+H168 ->  | I170: =+I157+I158+I161+I164+I165+I168 ->  | J170: =+J157+J158+J161+J164+J165+J168 -> 
Z172: TOTAL A PAGAR | AB172: =IF(AB149+AB151<0,0,AB149+AB151) -> 0
C173: Pensões
H174: 2013 | I174: 2014 | J174: 2015 | K174: 2016 | L174: 2017 | M174: 2018
C175: Sujeito Passivo A | E175: Pensões de velhice | G175: 1 | H175: =M103 -> 0 | I175: =H175 -> 0 | J175: =+M103 -> 0 | K175: =M103 -> 0 | L175: =M103 -> 0 | M175: =M103 -> 0
E176: Pensões de alimentos | G176: 2 | H176: =+M105 -> 0 | I176: =+M105 -> 0 | J176: =IF((IF(J175-4104<=0,(M105-(4104-J175))*0.2,M105*0.2))<0,0,IF(J175-4104<=0,(M105-(4104-J175))*0.2,M105*0.2)) -> 0
E177: Corte na pensão de sobrevivência | G177: 3 | AD177: =AB148 -> 0
E178: Total de Pensões | G178: 4 | H178: =H175+H176-H177 -> 0 | I178: 0 | J178: 0 | K178: 0 | L178: 0 | M178: 0
E179: CES | G179: 5 | H179: =IF((H175/14)-G199<1350,(H175/14-1350)*14,G200) -> -18900 | I179: =IF((I175/14)-G202<1350,(I175/14-1350)*14,G203) -> -18900 | J179: =G206 -> 0 | K179: =G208 -> 0 | L179: =G204 -> 0 | M179: =G204 -> 0 | AE179: =AB147*0.03-13.25 -> -13.25
E180: Dedução prevista para pensões | G180: 6 | H180: =G209 -> 0 | I180: =G210 -> 0 | J180: =G211 -> 0 | K180: =G212 -> 0 | L180: =G213 -> 0 | M180: =G213 -> 0 | Z180: SOBRETAXA 2017
E181: Dedução Específica ou CES (se superior) | H181: =IF(H180>H179,H180,H179) -> 0 | I181: 0 | J181: 0 | K181: 0 | L181: 0 | M181: 0
Z182: DESCRIÇÃO - ANUAL | AB182: Euros
H184: 2013 | I184: 2014 | J184: 2015 | K184: 2016 | L184: 2017 | M184: 2018
C185: Sujeito Passivo B | E185: Pensões de velhice | G185: 1 | H185: =N103 -> 0 | I185: =H185 -> 0 | J185: =+N103 -> 0 | K185: =N103 -> 0 | L185: =N103 -> 0 | M185: =N103 -> 0 | Z185: RENDIMENTO BRUTO | AB185: =K22 -> 0
E186: Pensões de alimentos | G186: 2 | H186: =+N105 -> 0 | I186: =+N105 -> 0 | J186: =IF((IF(J185-4104<="0",(N105-(4104-J185))*0.2,N105*0.2))<0,0,IF(J185-4104<="0",(N105-(4104-J185))*0.2,N105*0.2)) -> 0 | Z186: TOTAL | AB186: =AB185 -> 0
E187: Corte na pensão de sobrevivência | G187: 3
E188: Total de Pensões | G188: 4 | H188: =H185+H186-H187 -> 0 | I188: 0 | J188: 0 | K188: 0 | L188: 0 | M188: 0 | Z188: DEDUÇÕES ESPECÍFICAS | AB188: =K29 -> 0
E189: CES | G189: 5 | H189: =IF((H185/14)-J199<1350,(H185/14-1350)*14,J200) -> -18900 | I189: =IF((I185/14)-J202<1350,(I185/14-1350)*14,J203) -> -18900 | J189: =J206 -> 0 | K189: =J208 -> 0 | L189: =J204 -> 0 | M189: =J204 -> 0
E190: Dedução prevista para pensões | G190: 6 | H190: =J209 -> 0 | I190: =J210 -> 0 | J190: =J211 -> 0 | K190: =J212 -> 0 | L190: =J213 -> 0 | M190: =J213 -> 0
E191: Dedução Específica ou CES (se superior) | H191: =IF(H190>H189,H190,H189) -> 0 | I191: 0 | J191: 0 | K191: 0 | L191: 0 | M191: 0
Z192: RENDIMENTO LÍQUIDO/COLECTÁVEL | AB192: =AB186+AB188 -> 0 | AE192: Tabela da Sobretaxa (2017)
C193: TOTAL SP A+B | E193: RENDIMENTO BRUTO DA CATEGORIA | H193: =H185+H175+H176+H186 -> 0 | I193: =I185+I175+I176+I186 -> 0 | J193: =J185+J175 -> 0 | K193: =K185+K175 -> 0 | L193: =L185+L175 -> 0 | M193: =M185+M175 -> 0 | AE193: Rendimento Coletável (euros)
Z194: DESPESAS EDUCAÇÃO | AB194: =H33 -> 0 | AE194: 0 | AF194: 7091 | AG194: 0
C195: TOTAL SP A+B | E195: DEDUÇÃO ESPECÍFICA AOS REND. CATEGORIA | H195: =H181+H191 -> 0 | I195: 0 | J195: 0 | K195: 0 | L195: 0 | M195: 0 | AE195: 7091.0001 | AF195: 20261 | AG195: 0
Z196: RMMG (557 x 14 = 7798 ) | AB196: =IF(AND(C92=2,C101=2),-7798,-7798*$C$92) -> -7798 | AE196: 20261.001 | AF196: 40522 | AG196: 0.0088
F197: Sujeito A | I197: Sujeito B | AE197: 40522.001 | AF197: 80640 | AG197: 0.0275
AE198: 80640.001 | AF198: 1e+17 | AG198: 0.0321
F199: CES MENSAL 2013 | G199: =ROUND(IF(H178/14>AE28,((VLOOKUP(H178/14,AE28:AH30,3,TRUE)*H178/14)-VLOOKUP(H178/14,AE28:AH30,4))+((VLOOKUP(H178/14,AE40:AH42,3,TRUE)*H178/14)-VLOOKUP(H178/14,AE40:AH42,4)),0),2) -> 0 | I199: CES MENSAL 2013 | J199: =ROUND(IF(H188/14>AE28,((VLOOKUP(H188/14,AE28:AH30,3,TRUE)*H188/14)-VLOOKUP(H188/14,AE28:AH30,4))+((VLOOKUP(H188/14,AE40:AH42,3,TRUE)*H188/14)-VLOOKUP(H188/14,AE40:AH42,4)),0),2) -> 0 | Z199: RENDIMENTO PARA EFEITOS DE SOBRETAXA | AB199: =IF(+AB192+AB196-AB194<0,0,+AB192+AB196-AB194) -> 0
F200: CES ANUAL 2013 | G200: =G199*14 -> 0 | I200: CES ANUAL 2013 | J200: =J199*14 -> 0
F201: CES MENSAL 2017 / 2018 | G201: =ROUND(IF((L175/14)>AF80,VLOOKUP((L175/14),AE80:AH82,3,TRUE)*(L175/14)-VLOOKUP((L175/14),AE80:AH82,4,TRUE),0),2) -> 0 | I201: CES MENSAL 2017 /2018 | J201: =ROUND(IF((L185/14)>AF80,VLOOKUP((L185/14),AE80:AH82,3,TRUE)*(L185/14)-VLOOKUP((L185/14),AE80:AH82,4,TRUE),0),2) -> 0 | Z201: SOBRETAXA A PAGAR | AB201: =IF((VLOOKUP(IF(C92=1,AB192,IF(AND(C92=2,C101=1),AB192/2,AB192)),AE194:AG198,3,TRUE)*AB199)<0,0,VLOOKUP(IF(C92=1,AB192,IF(AND(C92=2,C101=1),AB192/2,AB192)),AE194:AG198,3,TRUE)*AB199) -> 0
F202: CES MENSAL 2014 | G202: =ROUND(IF(I178/14>AE28,((VLOOKUP(I178/14,AE28:AH30,3,TRUE)*I178/14)-VLOOKUP(I178/14,AE28:AH30,4))+((VLOOKUP(I178/14,AE40:AH42,3,TRUE)*I178/14)-VLOOKUP(I178/14,AE40:AH42,4)),0),2) -> 0 | I202: CES MENSAL 2014 | J202: =ROUND(IF(I188/14>AE28,((VLOOKUP(I188/14,AE28:AH30,3,TRUE)*I188/14)-VLOOKUP(I188/14,AE28:AH30,4))+((VLOOKUP(I188/14,AE40:AH42,3,TRUE)*I188/14)-VLOOKUP(I188/14,AE40:AH42,4)),0),2) -> 0
F203: CES ANUAL 2014 | G203: =G202*14 -> 0 | I203: CES ANUAL 2014 | J203: =J202*14 -> 0 | Z203: DEDUÇÃO À COLECTA POR FILHOS (2.5%*557=13.925) | AB203: =IF(AND(C92=2,C101=2),(IF(AB147=0,0,IF(C101=2,(-13.925*$C$95)/2,-13.925*$C$95)))/2,IF(AB147=0,0,IF(C101=2,(-13.925*$C$95)/2,-13.925*$C$95))) -> 0
F204: CES ANUAL 2017 / 2018 | G204: =ROUND(G201*14,2) -> 0 | I204: CES ANUAL 2017 / 2018 | J204: =ROUND(J201*14,2) -> 0
F205: CES MENSAL 2015 | G205: =ROUND(IF((J175/14)>AF52,VLOOKUP((J175/14),AE52:AH54,3,TRUE)*(J175/14)-VLOOKUP((J175/14),AE52:AH54,4,TRUE),0),2) -> 0 | I205: CES MENSAL 2015 | J205: =ROUND(IF((J185/14)>$AF$52,VLOOKUP((J185/14),$AE$52:$AH$54,3,TRUE)*(J185/14)-VLOOKUP((J185/14),$AE$52:$AH$54,4,TRUE),0),2) -> 0 | Z205: TOTAL A PAGAR | AB205: =IF(AB201+AB203<0,0,AB201+AB203) -> 0
F206: CES ANUAL 2015 | G206: =ROUND(G205*14,2) -> 0 | I206: CES ANUAL 2015 | J206: =ROUND(J205*14,2) -> 0
F207: CES MENSAL 2016 | G207: =ROUND(IF((K175/14)>AF66,VLOOKUP((K175/14),AE66:AH68,3,TRUE)*(K175/14)-VLOOKUP((K175/14),AE66:AH68,4,TRUE),0),2) -> 0 | I207: CES MENSAL 2016 | J207: =ROUND(IF((K185/14)>AF66,VLOOKUP((K185/14),AE66:AH68,3,TRUE)*(K185/14)-VLOOKUP((K185/14),AE66:AH68,4,TRUE),0),2) -> 0
F208: CES ANUAL 2016 | G208: =ROUND(G207*14,2) -> 0 | I208: CES ANUAL 2016 | J208: =ROUND(J207*14,2) -> 0
F209: DEDUÇÃO PENSÃO 2013 | G209: =IF(H178<=4104,H178,IF(AND(H178>4104,H178<22500),4104,IF((4104-(H178-22500)*0.2)>0,(4104-(H178-22500)*0.2),0))) -> 0 | I209: DEDUÇÃO PENSÃO 2013 | J209: =IF(H185<=4104,H185,IF(AND(H185>4104,H185<22500),4104,IF((4104-(H185-22500)*0.2)>0,(4104-(H185-22500)*0.2),0))) -> 0
F210: DEDUÇÃO PENSÃO 2014 | G210: =IF(I178<=4104,I178,IF(AND(I178>4104,I178<22500),4104,IF((4104-(I178-22500)*0.2)>0,(4104-(I178-22500)*0.2),0))) -> 0 | I210: DEDUÇÃO PENSÃO 2014 | J210: =IF(I188<=4104,I188,IF(AND(I188>4104,I188<22500),4104,IF((4104-(I188-22500)*0.2)>0,(4104-(I188-22500)*0.2),0))) -> 0 | Z210: SOBRETAXA 2018
F211: DEDUÇÃO PENSÃO 2015 | G211: =IF(J175<4104,J175,4104) -> 0 | I211: DEDUÇÃO PENSÃO 2015 | J211: =IF(J185<4104,J185,4104) -> 0
F212: DEDUÇÃO PENSÃO 2016 | G212: =IF(K175<4104,K175,4104) -> 0 | I212: DEDUÇÃO PENSÃO 2016 | J212: =IF(K185<4104,K185,4104) -> 0 | Z212: DESCRIÇÃO - ANUAL | AB212: Euros
F213: DEDUÇÃO PENSÃO 2017 / 2018 | G213: =IF(L175<4104,L175,4104) -> 0 | I213: DEDUÇÃO PENSÃO 2017 / 2018 | J213: =IF(L185<4104,L185,4104) -> 0
I214: 2014 | J214: 2015 | K214: 2016 | L214: 2017 | M214: 2018
... 91 more rows
